﻿Department,Entity, Transaction Date, Expense Type, Expense Area, Supplier Name,Transaction number, Amount
FCDO,CSC,01/03/2023,Scholar Stipend,Award Costs,MasterCard Prepaid Management Services Ltd,PIN062506,1398.44
FCDO,CSC,01/03/2023,Scholar Stipend,Award Costs,MasterCard Prepaid Management Services Ltd,PIN062506,1236
FCDO,CSC,01/03/2023,Scholar Stipend,Award Costs,MasterCard Prepaid Management Services Ltd,PIN062506,1516
FCDO,CSC,01/03/2023,Scholar Stipend,Award Costs,MasterCard Prepaid Management Services Ltd,PIN062506,1236
FCDO,CSC,01/03/2023,Scholar Stipend,Award Costs,MasterCard Prepaid Management Services Ltd,PIN062506,1317.22
FCDO,CSC,01/03/2023,Scholar Stipend,Award Costs,MasterCard Prepaid Management Services Ltd,PIN062506,1439.05
FCDO,CSC,01/03/2023,Scholar Stipend,Award Costs,MasterCard Prepaid Management Services Ltd,PIN062506,1276.61
FCDO,CSC,01/03/2023,Scholar Stipend,Award Costs,MasterCard Prepaid Management Services Ltd,PIN062506,1177.69
FCDO,CSC,01/03/2023,Scholar Stipend,Award Costs,MasterCard Prepaid Management Services Ltd,PIN062506,1601.49
FCDO,CSC,01/03/2023,Scholar Stipend,Award Costs,MasterCard Prepaid Management Services Ltd,PIN062506,1137.08
FCDO,CSC,03/03/2023,Reimbursements,Award Costs,Scholar,PIN062436,859
FCDO,CSC,03/03/2023,Scholar Stipend,Award Costs,Scholar,PIN062473,527.9
FCDO,CSC,03/03/2023,Scholar Stipend,Award Costs,Scholar,PIN062472,527.9
FCDO,CSC,03/03/2023,Scholar Stipend,Award Costs,Scholar,PIN062471,618
FCDO,CSC,03/03/2023,Tuition Fee,Award Costs,University of Bristol,PIN062469,4500
FCDO,CSC,03/03/2023,Award Support Costs,Award Costs,University of Bristol,PIN062468,4500
FCDO,CSC,03/03/2023,Award Support Costs,Award Costs,The University of Leeds,PIN062466,5000
FCDO,CSC,03/03/2023,Tuition Fee,Award Costs,The University of Leeds,PIN062465,18000
FCDO,CSC,03/03/2023,Tuition Fee,Award Costs,The University of Leeds,PIN062464,3000
FCDO,CSC,03/03/2023,Award Support Costs,Award Costs,The University of Leeds,PIN062460,5000
FCDO,CSC,03/03/2023,Tuition Fee,Award Costs,The University of Leeds,PIN062463,18000
FCDO,CSC,03/03/2023,Tuition Fee,Award Costs,The University of Leeds,PIN062459,18000
FCDO,CSC,03/03/2023,Tuition Fee,Award Costs,University of Sheffield,PIN062439,17040
FCDO,CSC,03/03/2023,Tuition Fee,Award Costs,Cranfield University,PIN062446,18000
FCDO,CSC,03/03/2023,Tuition Fee,Award Costs,Cranfield University,PIN062438,17720
FCDO,CSC,03/03/2023,Tuition Fee,Award Costs,Oxford Brookes University,PIN062487,7950
FCDO,CSC,03/03/2023,Tuition Fee,Award Costs,Oxford Brookes University,PIN062467,7950
FCDO,CSC,03/03/2023,Award Support Costs,Award Costs,Cranfield University,PIN062445,5000
FCDO,CSC,03/03/2023,Tuition Fee,Award Costs,Cranfield University,PIN062444,15096
FCDO,CSC,03/03/2023,Tuition Fee,Award Costs,Jesus College Oxford,PIN062462,18000
FCDO,CSC,03/03/2023,Tuition Fee,Award Costs,Sheffield Hallam Univ,PIN062443,11916
FCDO,CSC,03/03/2023,Tuition Fee,Award Costs,University of Leicester,PIN062458,17400
FCDO,CSC,03/03/2023,Tuition Fee,Award Costs,University of Leicester,PIN062457,15840
FCDO,CSC,03/03/2023,Tuition Fee,Award Costs,University of Leicester,PIN062456,16800
FCDO,CSC,03/03/2023,Tuition Fee,Award Costs,University of Leicester,PIN062455,16800
FCDO,CSC,03/03/2023,Tuition Fee,Award Costs,Cranfield University,PIN062454,22150
FCDO,CSC,03/03/2023,Tuition Fee,Award Costs,Cranfield University,PIN062453,22150
FCDO,CSC,03/03/2023,Tuition Fee,Award Costs,Cranfield University,PIN062452,22150
FCDO,CSC,03/03/2023,Tuition Fee,Award Costs,Cranfield University,PIN062451,22150
FCDO,CSC,03/03/2023,Tuition Fee,Award Costs,Cranfield University,PIN062450,22150
FCDO,CSC,03/03/2023,Tuition Fee,Award Costs,Cranfield University,PIN062449,22150
FCDO,CSC,03/03/2023,Tuition Fee,Award Costs,Wolfson College,PIN062461,18000
FCDO,CSC,03/03/2023,Tuition Fee,Award Costs,Cranfield University,PIN062448,22150
FCDO,CSC,03/03/2023,Tuition Fee,Award Costs,Cranfield University,PIN062447,17720
FCDO,CSC,03/03/2023,Tuition Fee,Award Costs,University of Sheffield,PIN062440,18000
FCDO,CSC,01/03/2023,Scholar Stipend,Award Costs,MasterCard Prepaid Management Services Ltd,PIN062507,1236
FCDO,CSC,01/03/2023,Scholar Stipend,Award Costs,MasterCard Prepaid Management Services Ltd,PIN062507,1439.05
FCDO,CSC,01/03/2023,Scholar Stipend,Award Costs,MasterCard Prepaid Management Services Ltd,PIN062507,1177.69
FCDO,CSC,01/03/2023,Scholar Stipend,Award Costs,MasterCard Prepaid Management Services Ltd,PIN062507,893.42
FCDO,CSC,03/03/2023,Scholar Stipend,Award Costs,Scholar,PIN062502,1763.9
FCDO,CSC,03/03/2023,Scholar Stipend,Award Costs,Scholar,PIN062501,1096.41
FCDO,CSC,03/03/2023,Scholar Stipend,Award Costs,Scholar,PIN062500,1296.91
FCDO,CSC,03/03/2023,Scholar Stipend,Award Costs,Scholar,PIN062499,1236
FCDO,CSC,03/03/2023,Scholar Stipend,Award Costs,Scholar,PIN062497,1236
FCDO,CSC,03/03/2023,Scholar Allowances,Award Costs,Scholar,PIN062496,1137.02
FCDO,CSC,03/03/2023,Scholar Stipend,Award Costs,Scholar,PIN062495,697.29
FCDO,CSC,03/03/2023,Scholar Allowances,Award Costs,Scholar,PIN062493,1444.4
FCDO,CSC,03/03/2023,Scholar Allowances,Award Costs,Scholar,PIN062492,1218.23
FCDO,CSC,03/03/2023,Scholar Stipend,Award Costs,Scholar,PIN062491,1197.93
FCDO,CSC,03/03/2023,Scholar Allowances,Award Costs,Scholar,PIN062490,893.37
FCDO,CSC,03/03/2023,Scholar Stipend,Award Costs,Scholar,PIN062489,527.9
FCDO,CSC,03/03/2023,Scholar Allowances,Award Costs,Scholar,PIN062488,852.76
FCDO,CSC,07/03/2023,Secretariat Service Provision,Programme Costs,Scholar,NOM001217,1290.36
FCDO,CSC,07/03/2023,Secretariat Service Provision,Programme Costs,Scholar,NOM001217,4335.08
FCDO,CSC,08/03/2023,Scholar Stipend,Award Costs,MasterCard Prepaid Management Services Ltd,PIN063399,1276.61
FCDO,CSC,08/03/2023,Scholar Stipend,Award Costs,MasterCard Prepaid Management Services Ltd,PIN063399,1055.86
FCDO,CSC,08/03/2023,Scholar Stipend,Award Costs,MasterCard Prepaid Management Services Ltd,PIN063399,1096.47
FCDO,CSC,14/03/2023,Scholar Stipend,Award Costs,MasterCard Prepaid Management Services Ltd,PIN063401,1145.63
FCDO,CSC,14/03/2023,Scholar Allowances,Award Costs,Scholar,PIN062629,1394.6
FCDO,CSC,14/03/2023,Scholar Allowances,Award Costs,Scholar,PIN062628,771.55
FCDO,CSC,14/03/2023,Scholar Stipend,Award Costs,Scholar,PIN062625,1236
FCDO,CSC,14/03/2023,Alumni Engagement,Programme Costs,Scholar,PIN062623,500
FCDO,CSC,14/03/2023,Alumni Engagement,Programme Costs,Scholar,PIN062622,500
FCDO,CSC,14/03/2023,Tuition Fee,Award Costs,University of Strathclyde,PIN062604,9870
FCDO,CSC,14/03/2023,Scholar Allowances,Award Costs,Scholar,PIN062578,600
FCDO,CSC,14/03/2023,Tuition Fee,Award Costs,University College London Fees,PIN062603,15387.93
FCDO,CSC,14/03/2023,Award Support Costs,Award Costs,University College London Fees,PIN062602,3000
FCDO,CSC,14/03/2023,Award Support Costs,Award Costs,University of Hull,PIN062588,5000
FCDO,CSC,14/03/2023,Award Support Costs,Award Costs,University of Hull,PIN062587,5000
FCDO,CSC,14/03/2023,Scholar Engagement,Programme Costs,TFW Printers,PIN062624,6780
FCDO,CSC,14/03/2023,Alumni Engagement,Programme Costs,TFW Printers,PIN062620,3700
FCDO,CSC,14/03/2023,Alumni Engagement,Programme Costs,TFW Printers,PIN062618,2892
FCDO,CSC,14/03/2023,Tuition Fee,Award Costs,The Queens College,PIN062579,18000
FCDO,CSC,14/03/2023,Award Support Costs,Award Costs,University of Manchester,PIN062559,20000
FCDO,CSC,14/03/2023,Award Support Costs,Award Costs,University of Oxford,PIN062558,5000
FCDO,CSC,14/03/2023,Tuition Fee,Award Costs,University of Exeter,PIN062555,15040
FCDO,CSC,14/03/2023,Award Support Costs,Award Costs,University of Oxford,PIN062557,5000
FCDO,CSC,14/03/2023,Award Support Costs,Award Costs,University of Oxford,PIN062556,5000
FCDO,CSC,14/03/2023,Tuition Fee,Award Costs,University of Leicester,PIN062564,13460
FCDO,CSC,14/03/2023,Tuition Fee,Award Costs,Universty of Westminster,PIN062574,11200
FCDO,CSC,14/03/2023,Tuition Fee,Award Costs,University of Portsmouth,PIN062571,14080
FCDO,CSC,14/03/2023,Tuition Fee,Award Costs,The University of Edinburgh,PIN062581,18000
FCDO,CSC,14/03/2023,Award Support Costs,Award Costs,The University of Warwick,PIN062577,6666.7
FCDO,CSC,14/03/2023,Tuition Fee,Award Costs,University of Essex,PIN062553,13633.6
FCDO,CSC,14/03/2023,Tuition Fee,Award Costs,University of Glasgow,PIN062550,18000
FCDO,CSC,14/03/2023,Tuition Fee,Award Costs,The University of Edinburgh,PIN062523,18000
FCDO,CSC,14/03/2023,Tuition Fee,Award Costs,The University of Edinburgh,PIN062522,18000
FCDO,CSC,14/03/2023,Tuition Fee,Award Costs,Loughborough University,PIN062552,18000
FCDO,CSC,14/03/2023,Tuition Fee,Award Costs,Loughborough University,PIN062551,18000
FCDO,CSC,14/03/2023,Scholar Allowances,Award Costs,University of Chester,PIN062527,1413
FCDO,CSC,14/03/2023,Scholar Allowances,Award Costs,The University of Warwick,PIN062514,864
FCDO,CSC,14/03/2023,Award Support Costs,Award Costs,University of Strathclyde,PIN062526,3200
FCDO,CSC,14/03/2023,Tuition Fee,Award Costs,The University of York,PIN062531,7809
FCDO,CSC,14/03/2023,Award Support Costs,Award Costs,University College London Fees,PIN062546,5000
FCDO,CSC,14/03/2023,Tuition Fee,Award Costs,University of Bristol,PIN062573,18000
FCDO,CSC,14/03/2023,Award Support Costs,Award Costs,University of Bradford,PIN062545,5000
FCDO,CSC,14/03/2023,Award Support Costs,Award Costs,University of Bradford,PIN062544,5000
FCDO,CSC,14/03/2023,Tuition Fee,Award Costs,University of Glasgow,PIN062516,21650
FCDO,CSC,14/03/2023,Tuition Fee,Award Costs,University of Glasgow,PIN062515,20400
FCDO,CSC,14/03/2023,Scholar Travel,Award Costs,University of Southampton,PIN062528,2463.7
FCDO,CSC,14/03/2023,Scholar Travel,Award Costs,Queen Margaret University,PIN062518,713.1
FCDO,CSC,14/03/2023,Tuition Fee,Award Costs,St Cross College Oxford,PIN062543,22500
FCDO,CSC,14/03/2023,Tuition Fee,Award Costs,The University of Birmingham,PIN062542,16344
FCDO,CSC,14/03/2023,Tuition Fee,Award Costs,The University of Birmingham,PIN062541,14868
FCDO,CSC,14/03/2023,Tuition Fee,Award Costs,The University of Edinburgh,PIN062580,18000
FCDO,CSC,14/03/2023,Tuition Fee,Award Costs,Lond Sch Hygiene & Tropical Me,PIN062554,90000
FCDO,CSC,14/03/2023,Scholar Allowances,Award Costs,Lond Sch Hygiene & Tropical Me,PIN062554,800
FCDO,CSC,14/03/2023,Scholar Travel,Award Costs,Lond Sch Hygiene & Tropical Me,PIN062554,6258.6
FCDO,CSC,14/03/2023,Scholar Allowances,Award Costs,Lond Sch Hygiene & Tropical Me,PIN062554,900
FCDO,CSC,14/03/2023,Tuition Fee,Award Costs,Scholar,PIN062512,16000
FCDO,CSC,14/03/2023,Tuition Fee,Award Costs,Scholar,PIN062511,16000
FCDO,CSC,14/03/2023,Tuition Fee,Award Costs,Scholar,PIN062510,15750
FCDO,CSC,14/03/2023,Tuition Fee,Award Costs,University of Bath,PIN062548,6649.6
FCDO,CSC,14/03/2023,Tuition Fee,Award Costs,University of Bath,PIN062547,6649.6
FCDO,CSC,14/03/2023,Tuition Fee,Award Costs,Oxford Brookes University,PIN062575,6360
FCDO,CSC,14/03/2023,Tuition Fee,Award Costs,Oxford Brookes University,PIN062566,12443
FCDO,CSC,14/03/2023,Tuition Fee,Award Costs,Oxford Brookes University,PIN062563,7850
FCDO,CSC,14/03/2023,Tuition Fee,Award Costs,Oxford Brookes University,PIN062562,7850
FCDO,CSC,14/03/2023,Tuition Fee,Award Costs,University of Bristol,PIN062572,18000
FCDO,CSC,14/03/2023,Award Support Costs,Award Costs,Aston University,PIN062561,3000
FCDO,CSC,14/03/2023,Tuition Fee,Award Costs,The University of Warwick,PIN062606,18000
FCDO,CSC,14/03/2023,Tuition Fee,Award Costs,Lond Sch Hygiene & Tropical Me,PIN062534,15352
FCDO,CSC,14/03/2023,Tuition Fee,Award Costs,Coventry University,PIN062525,19350
FCDO,CSC,14/03/2023,Tuition Fee,Award Costs,Lond Sch Hygiene & Tropical Me,PIN062533,15352
FCDO,CSC,14/03/2023,Tuition Fee,Award Costs,The University of Nottingham,PIN062596,18000
FCDO,CSC,14/03/2023,Tuition Fee,Award Costs,The University of Nottingham,PIN062595,16800
FCDO,CSC,14/03/2023,Tuition Fee,Award Costs,The University of Nottingham,PIN062594,21000
FCDO,CSC,14/03/2023,Tuition Fee,Award Costs,The University of Nottingham,PIN062593,22500
FCDO,CSC,14/03/2023,Tuition Fee,Award Costs,The University of Nottingham,PIN062592,22500
FCDO,CSC,14/03/2023,Tuition Fee,Award Costs,The University of Nottingham,PIN062591,21000
FCDO,CSC,14/03/2023,Tuition Fee,Award Costs,The University of Nottingham,PIN062590,21000
FCDO,CSC,14/03/2023,Tuition Fee,Award Costs,The University of Nottingham,PIN062589,21000
FCDO,CSC,14/03/2023,Tuition Fee,Award Costs,Lond Sch Hygiene & Tropical Me,PIN062539,18000
FCDO,CSC,14/03/2023,Tuition Fee,Award Costs,Lond Sch Hygiene & Tropical Me,PIN062538,18000
FCDO,CSC,14/03/2023,Tuition Fee,Award Costs,Lond Sch Hygiene & Tropical Me,PIN062537,18000
FCDO,CSC,14/03/2023,Tuition Fee,Award Costs,Lond Sch Hygiene & Tropical Me,PIN062536,18000
FCDO,CSC,14/03/2023,Tuition Fee,Award Costs,The University of Warwick,PIN062609,16576
FCDO,CSC,14/03/2023,Tuition Fee,Award Costs,Coventry University,PIN062524,16950
FCDO,CSC,14/03/2023,Tuition Fee,Award Costs,The University of Warwick,PIN062610,18000
FCDO,CSC,14/03/2023,Tuition Fee,Award Costs,The University of Warwick,PIN062612,20265
FCDO,CSC,14/03/2023,Tuition Fee,Award Costs,The University of Warwick,PIN062615,22500
FCDO,CSC,14/03/2023,Tuition Fee,Award Costs,The University of Warwick,PIN062608,22500
FCDO,CSC,14/03/2023,Tuition Fee,Award Costs,The University of Warwick,PIN062614,22500
FCDO,CSC,14/03/2023,Tuition Fee,Award Costs,The University of Warwick,PIN062613,22500
FCDO,CSC,14/03/2023,Tuition Fee,Award Costs,The University of Warwick,PIN062611,22500
FCDO,CSC,14/03/2023,Tuition Fee,Award Costs,The University of Warwick,PIN062607,22500
FCDO,CSC,14/03/2023,Tuition Fee,Award Costs,The University of Nottingham,PIN062600,18000
FCDO,CSC,14/03/2023,Tuition Fee,Award Costs,The University of Nottingham,PIN062598,18000
FCDO,CSC,14/03/2023,Tuition Fee,Award Costs,The University of Nottingham,PIN062601,15200
FCDO,CSC,14/03/2023,Tuition Fee,Award Costs,The University of Nottingham,PIN062599,14736
FCDO,CSC,14/03/2023,Tuition Fee,Award Costs,The University of Nottingham,PIN062597,14736
FCDO,CSC,14/03/2023,Tuition Fee,Award Costs,Lond Sch Hygiene & Tropical Me,PIN062535,15352
FCDO,CSC,14/03/2023,Tuition Fee,Award Costs,Lond Sch Hygiene & Tropical Me,PIN062532,15352
FCDO,CSC,14/03/2023,Tuition Fee,Award Costs,Lond Sch Hygiene & Tropical Me,PIN062540,7896.96
FCDO,CSC,14/03/2023,Tuition Fee,Award Costs,The University of Edinburgh,PIN062568,49200
FCDO,CSC,15/03/2023,Scholar Stipend,Award Costs,MasterCard Prepaid Management Services Ltd,PIN063400,852.81
FCDO,CSC,17/03/2023,Scholar Stipend,Award Costs,MasterCard Prepaid Management Services Ltd,PIN063402,771.59
FCDO,CSC,17/03/2023,Scholar Allowances,Award Costs,Scholar,PIN062684,893.37
FCDO,CSC,17/03/2023,Scholar Stipend,Award Costs,Scholar,PIN062683,812.16
FCDO,CSC,17/03/2023,Scholar Allowances,Award Costs,Scholar,PIN062682,771.55
FCDO,CSC,17/03/2023,Scholar Stipend,Award Costs,Scholar,PIN062681,1096.41
FCDO,CSC,17/03/2023,Scholar Allowances,Award Costs,Scholar,PIN062679,933.98
FCDO,CSC,17/03/2023,Award Support Costs,Award Costs,University of East Anglia,PIN062670,3000
FCDO,CSC,17/03/2023,Scholar Allowances,Award Costs,Scholar,PIN062641,600
FCDO,CSC,17/03/2023,Award Support Costs,Award Costs,University of East Anglia,PIN062661,5100
FCDO,CSC,17/03/2023,Award Support Costs,Award Costs,University of East Anglia,PIN062660,5000
FCDO,CSC,17/03/2023,Tuition Fee,Award Costs,Bangor University,PIN062665,86100
FCDO,CSC,17/03/2023,Tuition Fee,Award Costs,University of Sussex,PIN062669,15600
FCDO,CSC,17/03/2023,Award Support Costs,Award Costs,Goldsmiths College,PIN062651,5000
FCDO,CSC,17/03/2023,Award Support Costs,Award Costs,University of Glasgow,PIN062649,5000
FCDO,CSC,17/03/2023,Tuition Fee,Award Costs,University of Glasgow,PIN062648,8160
FCDO,CSC,17/03/2023,Tuition Fee,Award Costs,University of Bristol,PIN062639,18000
FCDO,CSC,17/03/2023,Tuition Fee,Award Costs,University of Bristol,PIN062637,18000
FCDO,CSC,17/03/2023,Scholar Travel,Award Costs,Diversity Travel,PIN062687,2497.96
FCDO,CSC,17/03/2023,Scholar Travel,Award Costs,Diversity Travel,PIN062687,2019.64
FCDO,CSC,17/03/2023,Scholar Travel,Award Costs,Diversity Travel,PIN062687,2019
FCDO,CSC,17/03/2023,Scholar Travel,Award Costs,Diversity Travel,PIN062687,1822.39
FCDO,CSC,17/03/2023,Scholar Travel,Award Costs,Diversity Travel,PIN062687,1739.94
FCDO,CSC,17/03/2023,Fieldwork Airfare,Award Costs,Diversity Travel,PIN062687,1688.43
FCDO,CSC,17/03/2023,Scholar Travel,Award Costs,Diversity Travel,PIN062687,1559.14
FCDO,CSC,17/03/2023,Scholar Travel,Award Costs,Diversity Travel,PIN062687,1553.34
FCDO,CSC,17/03/2023,Scholar Travel,Award Costs,Diversity Travel,PIN062687,1328.74
FCDO,CSC,17/03/2023,Scholar Travel,Award Costs,Diversity Travel,PIN062687,1302.22
FCDO,CSC,17/03/2023,Scholar Travel,Award Costs,Diversity Travel,PIN062687,1296.33
FCDO,CSC,17/03/2023,Scholar Travel,Award Costs,Diversity Travel,PIN062687,1287.23
FCDO,CSC,17/03/2023,Scholar Travel,Award Costs,Diversity Travel,PIN062687,1275.14
FCDO,CSC,17/03/2023,Scholar Travel,Award Costs,Diversity Travel,PIN062687,1270.03
FCDO,CSC,17/03/2023,Scholar Travel,Award Costs,Diversity Travel,PIN062687,1260.45
FCDO,CSC,17/03/2023,Scholar Travel,Award Costs,Diversity Travel,PIN062687,1174.11
FCDO,CSC,17/03/2023,Fieldwork Airfare,Award Costs,Diversity Travel,PIN062687,1050.49
FCDO,CSC,17/03/2023,Scholar Travel,Award Costs,Diversity Travel,PIN062687,1046.76
FCDO,CSC,17/03/2023,Scholar Travel,Award Costs,Diversity Travel,PIN062687,964.76
FCDO,CSC,17/03/2023,Scholar Travel,Award Costs,Diversity Travel,PIN062687,887.09
FCDO,CSC,17/03/2023,Scholar Travel,Award Costs,Diversity Travel,PIN062687,843.33
FCDO,CSC,17/03/2023,Scholar Travel,Award Costs,Diversity Travel,PIN062687,822.81
FCDO,CSC,17/03/2023,Scholar Travel,Award Costs,Diversity Travel,PIN062687,817.3
FCDO,CSC,17/03/2023,Scholar Travel,Award Costs,Diversity Travel,PIN062687,800.47
FCDO,CSC,17/03/2023,Scholar Travel,Award Costs,Diversity Travel,PIN062687,782.8
FCDO,CSC,17/03/2023,Scholar Travel,Award Costs,Diversity Travel,PIN062687,752.8
FCDO,CSC,17/03/2023,Scholar Travel,Award Costs,Diversity Travel,PIN062687,556.48
FCDO,CSC,17/03/2023,Scholar Travel,Award Costs,Diversity Travel,PIN062687,506.81
FCDO,CSC,17/03/2023,Scholar Allowances,Award Costs,The University of Nottingham,PIN062664,1903.63
FCDO,CSC,17/03/2023,Award Support Costs,Award Costs,University of Surrey,PIN062652,2000
FCDO,CSC,17/03/2023,Tuition Fee,Award Costs,University of Surrey,PIN062652,18000
FCDO,CSC,17/03/2023,Scholar Travel,Award Costs,Diversity Travel,PIN062686,2035.58
FCDO,CSC,17/03/2023,Scholar Travel,Award Costs,Diversity Travel,PIN062686,1995.91
FCDO,CSC,17/03/2023,Scholar Travel,Award Costs,Diversity Travel,PIN062686,1956.35
FCDO,CSC,17/03/2023,Scholar Travel,Award Costs,Diversity Travel,PIN062686,1934.45
FCDO,CSC,17/03/2023,Scholar Travel,Award Costs,Diversity Travel,PIN062686,1913.57
FCDO,CSC,17/03/2023,Scholar Travel,Award Costs,Diversity Travel,PIN062686,1913.57
FCDO,CSC,17/03/2023,Scholar Travel,Award Costs,Diversity Travel,PIN062686,1906.95
FCDO,CSC,17/03/2023,Scholar Travel,Award Costs,Diversity Travel,PIN062686,1906.95
FCDO,CSC,17/03/2023,Scholar Travel,Award Costs,Diversity Travel,PIN062686,1906.95
FCDO,CSC,17/03/2023,Scholar Travel,Award Costs,Diversity Travel,PIN062686,1904.57
FCDO,CSC,17/03/2023,Fieldwork Airfare,Award Costs,Diversity Travel,PIN062686,1877.83
FCDO,CSC,17/03/2023,Scholar Travel,Award Costs,Diversity Travel,PIN062686,1846.19
FCDO,CSC,17/03/2023,Scholar Travel,Award Costs,Diversity Travel,PIN062686,1784.63
FCDO,CSC,17/03/2023,Scholar Travel,Award Costs,Diversity Travel,PIN062686,1765.91
FCDO,CSC,17/03/2023,Scholar Travel,Award Costs,Diversity Travel,PIN062686,1706.19
FCDO,CSC,17/03/2023,Scholar Travel,Award Costs,Diversity Travel,PIN062686,1690.17
FCDO,CSC,17/03/2023,Scholar Travel,Award Costs,Diversity Travel,PIN062686,1611.94
FCDO,CSC,17/03/2023,Scholar Travel,Award Costs,Diversity Travel,PIN062686,1587.34
FCDO,CSC,17/03/2023,Scholar Travel,Award Costs,Diversity Travel,PIN062686,1587.34
FCDO,CSC,17/03/2023,Scholar Travel,Award Costs,Diversity Travel,PIN062686,1504.8
FCDO,CSC,17/03/2023,Scholar Travel,Award Costs,Diversity Travel,PIN062686,1357.25
FCDO,CSC,17/03/2023,Scholar Travel,Award Costs,Diversity Travel,PIN062686,1303.41
FCDO,CSC,17/03/2023,Scholar Travel,Award Costs,Diversity Travel,PIN062686,1303.01
FCDO,CSC,17/03/2023,Scholar Travel,Award Costs,Diversity Travel,PIN062686,1250.94
FCDO,CSC,17/03/2023,Scholar Travel,Award Costs,Diversity Travel,PIN062686,1159.3
FCDO,CSC,17/03/2023,Scholar Travel,Award Costs,Diversity Travel,PIN062686,1116.24
FCDO,CSC,17/03/2023,Scholar Travel,Award Costs,Diversity Travel,PIN062686,1113.11
FCDO,CSC,17/03/2023,Scholar Travel,Award Costs,Diversity Travel,PIN062686,1093.47
FCDO,CSC,17/03/2023,Scholar Travel,Award Costs,Diversity Travel,PIN062686,1017.16
FCDO,CSC,17/03/2023,Scholar Travel,Award Costs,Diversity Travel,PIN062686,951.31
FCDO,CSC,17/03/2023,Scholar Travel,Award Costs,Diversity Travel,PIN062686,930.24
FCDO,CSC,17/03/2023,Scholar Travel,Award Costs,Diversity Travel,PIN062686,897.12
FCDO,CSC,17/03/2023,Scholar Travel,Award Costs,Diversity Travel,PIN062686,890.6
FCDO,CSC,17/03/2023,Scholar Travel,Award Costs,Diversity Travel,PIN062686,889.25
FCDO,CSC,17/03/2023,Scholar Travel,Award Costs,Diversity Travel,PIN062686,874.69
FCDO,CSC,17/03/2023,Scholar Travel,Award Costs,Diversity Travel,PIN062686,852.54
FCDO,CSC,17/03/2023,Scholar Travel,Award Costs,Diversity Travel,PIN062686,845.8
FCDO,CSC,17/03/2023,Scholar Travel,Award Costs,Diversity Travel,PIN062686,844.45
FCDO,CSC,17/03/2023,Scholar Travel,Award Costs,Diversity Travel,PIN062686,833.29
FCDO,CSC,17/03/2023,Scholar Travel,Award Costs,Diversity Travel,PIN062686,831.54
FCDO,CSC,17/03/2023,Scholar Travel,Award Costs,Diversity Travel,PIN062686,808.62
FCDO,CSC,17/03/2023,Scholar Travel,Award Costs,Diversity Travel,PIN062686,777.61
FCDO,CSC,17/03/2023,Scholar Travel,Award Costs,Diversity Travel,PIN062686,747.48
FCDO,CSC,17/03/2023,Scholar Travel,Award Costs,Diversity Travel,PIN062686,693.51
FCDO,CSC,17/03/2023,Scholar Travel,Award Costs,Diversity Travel,PIN062685,1907.06
FCDO,CSC,17/03/2023,Scholar Travel,Award Costs,Diversity Travel,PIN062685,1744.95
FCDO,CSC,17/03/2023,Scholar Travel,Award Costs,Diversity Travel,PIN062685,1262.74
FCDO,CSC,17/03/2023,Scholar Travel,Award Costs,Diversity Travel,PIN062685,1099.54
FCDO,CSC,17/03/2023,Scholar Travel,Award Costs,Diversity Travel,PIN062685,1037.34
FCDO,CSC,17/03/2023,Scholar Travel,Award Costs,Diversity Travel,PIN062685,1008.79
FCDO,CSC,17/03/2023,Scholar Travel,Award Costs,Diversity Travel,PIN062685,969.97
FCDO,CSC,17/03/2023,Scholar Travel,Award Costs,Diversity Travel,PIN062685,945.84
FCDO,CSC,17/03/2023,Scholar Travel,Award Costs,Diversity Travel,PIN062685,945.84
FCDO,CSC,17/03/2023,Scholar Travel,Award Costs,Diversity Travel,PIN062685,942.82
FCDO,CSC,17/03/2023,Scholar Travel,Award Costs,Diversity Travel,PIN062685,923.04
FCDO,CSC,17/03/2023,Scholar Travel,Award Costs,Diversity Travel,PIN062685,910.81
FCDO,CSC,17/03/2023,Scholar Travel,Award Costs,Diversity Travel,PIN062685,905.55
FCDO,CSC,17/03/2023,Scholar Travel,Award Costs,Diversity Travel,PIN062685,899.12
FCDO,CSC,17/03/2023,Scholar Travel,Award Costs,Diversity Travel,PIN062685,892.94
FCDO,CSC,17/03/2023,Scholar Travel,Award Costs,Diversity Travel,PIN062685,892.82
FCDO,CSC,17/03/2023,Scholar Travel,Award Costs,Diversity Travel,PIN062685,891.18
FCDO,CSC,17/03/2023,Scholar Travel,Award Costs,Diversity Travel,PIN062685,882.29
FCDO,CSC,17/03/2023,Scholar Travel,Award Costs,Diversity Travel,PIN062685,879.91
FCDO,CSC,17/03/2023,Scholar Travel,Award Costs,Diversity Travel,PIN062685,878.06
FCDO,CSC,17/03/2023,Scholar Travel,Award Costs,Diversity Travel,PIN062685,875.27
FCDO,CSC,17/03/2023,Scholar Travel,Award Costs,Diversity Travel,PIN062685,875.21
FCDO,CSC,17/03/2023,Scholar Travel,Award Costs,Diversity Travel,PIN062685,874.06
FCDO,CSC,17/03/2023,Scholar Travel,Award Costs,Diversity Travel,PIN062685,870.69
FCDO,CSC,17/03/2023,Scholar Travel,Award Costs,Diversity Travel,PIN062685,861.7
FCDO,CSC,17/03/2023,Scholar Travel,Award Costs,Diversity Travel,PIN062685,846.96
FCDO,CSC,17/03/2023,Scholar Travel,Award Costs,Diversity Travel,PIN062685,845.28
FCDO,CSC,17/03/2023,Scholar Travel,Award Costs,Diversity Travel,PIN062685,841.91
FCDO,CSC,17/03/2023,Scholar Travel,Award Costs,Diversity Travel,PIN062685,820.25
FCDO,CSC,17/03/2023,Scholar Travel,Award Costs,Diversity Travel,PIN062685,793.17
FCDO,CSC,17/03/2023,Scholar Travel,Award Costs,Diversity Travel,PIN062685,792.18
FCDO,CSC,17/03/2023,Scholar Travel,Award Costs,Diversity Travel,PIN062685,785.37
FCDO,CSC,17/03/2023,Scholar Travel,Award Costs,Diversity Travel,PIN062685,767.59
FCDO,CSC,17/03/2023,Scholar Travel,Award Costs,Diversity Travel,PIN062685,760.99
FCDO,CSC,17/03/2023,Scholar Travel,Award Costs,Diversity Travel,PIN062685,622.12
FCDO,CSC,17/03/2023,Scholar Travel,Award Costs,Diversity Travel,PIN062685,552.73
FCDO,CSC,17/03/2023,Scholar Travel,Award Costs,Diversity Travel,PIN062685,548.21
FCDO,CSC,17/03/2023,Tuition Fee,Award Costs,Scholar,PIN062650,14280
FCDO,CSC,17/03/2023,Tuition Fee,Award Costs,University of Dundee,PIN062635,625
FCDO,CSC,17/03/2023,Tuition Fee,Award Costs,University of Dundee,PIN062636,2025
FCDO,CSC,17/03/2023,Tuition Fee,Award Costs,University of Dundee,PIN062634,4050
FCDO,CSC,17/03/2023,Tuition Fee,Award Costs,University of Dundee,PIN062633,4050
FCDO,CSC,17/03/2023,Tuition Fee,Award Costs,Bangor University,PIN062667,56250
FCDO,CSC,17/03/2023,Tuition Fee,Award Costs,Bangor University,PIN062666,2990
FCDO,CSC,17/03/2023,Award Support Costs,Award Costs,University of Liverpool,PIN062645,5000
FCDO,CSC,17/03/2023,Tuition Fee,Award Costs,University of Liverpool,PIN062644,18000
FCDO,CSC,17/03/2023,Tuition Fee,Award Costs,Queen Mary University of London,PIN062662,18000
FCDO,CSC,17/03/2023,Tuition Fee,Award Costs,Bangor University,PCR000270,-1000
FCDO,CSC,17/03/2023,Tuition Fee,Award Costs,The University of Edinburgh,PIN062640,1915
FCDO,CSC,17/03/2023,Tuition Fee,Award Costs,University of East Anglia,PIN062668,16400
FCDO,CSC,17/03/2023,Award Support Costs,Award Costs,University of Liverpool,PIN062646,5000
FCDO,CSC,17/03/2023,Award Support Costs,Award Costs,University of Liverpool,PIN062647,5000
FCDO,CSC,20/03/2023,Alumni Engagement,Programme Costs,Scholar,NOM001230,11988
FCDO,CSC,24/03/2023,Scholar Allowances,Award Costs,Scholar,PIN063312,2035
FCDO,CSC,24/03/2023,Scholar Allowances,Award Costs,Scholar,PIN063311,1122.5
FCDO,CSC,24/03/2023,Scholar Allowances,Award Costs,Scholar,PIN063310,1642.5
FCDO,CSC,24/03/2023,Scholar Allowances,Award Costs,Scholar,PIN063309,2037.5
FCDO,CSC,24/03/2023,Scholar Allowances,Award Costs,Scholar,PIN063308,1500
FCDO,CSC,24/03/2023,Scholar Allowances,Award Costs,Scholar,PIN063306,1940
FCDO,CSC,24/03/2023,Scholar Allowances,Award Costs,Scholar,PIN063305,1450
FCDO,CSC,24/03/2023,Scholar Stipend,Award Costs,Scholar,PIN063301,588.81
FCDO,CSC,24/03/2023,Scholar Stipend,Award Costs,Scholar,PIN063297,527.8
FCDO,CSC,24/03/2023,Scholar Stipend,Award Costs,Scholar,PIN063294,588.7
FCDO,CSC,24/03/2023,Scholar Allowances,Award Costs,Scholar,PIN063293,798
FCDO,CSC,24/03/2023,Scholar Allowances,Award Costs,Scholar,PIN063292,798
FCDO,CSC,24/03/2023,Scholar Allowances,Award Costs,Scholar,PIN063291,798
FCDO,CSC,24/03/2023,Scholar Allowances,Award Costs,Scholar,PIN063290,798
FCDO,CSC,24/03/2023,Scholar Allowances,Award Costs,Scholar,PIN063289,1042.72
FCDO,CSC,24/03/2023,Scholar Allowances,Award Costs,Scholar,PIN063288,2128
FCDO,CSC,24/03/2023,Scholar Allowances,Award Costs,Scholar,PIN063287,798
FCDO,CSC,24/03/2023,Scholar Allowances,Award Costs,Scholar,PIN063286,759.24
FCDO,CSC,24/03/2023,Scholar Allowances,Award Costs,Scholar,PIN063285,798
FCDO,CSC,24/03/2023,Scholar Allowances,Award Costs,Scholar,PIN063284,798
FCDO,CSC,24/03/2023,Scholar Allowances,Award Costs,Scholar,PIN063283,798
FCDO,CSC,24/03/2023,Scholar Allowances,Award Costs,Scholar,PIN063282,798
FCDO,CSC,24/03/2023,Scholar Allowances,Award Costs,Scholar,PIN063281,798
FCDO,CSC,24/03/2023,Scholar Allowances,Award Costs,Scholar,PIN063280,798
FCDO,CSC,24/03/2023,Scholar Allowances,Award Costs,Scholar,PIN063279,798
FCDO,CSC,24/03/2023,Scholar Allowances,Award Costs,Scholar,PIN063278,1382.44
FCDO,CSC,24/03/2023,Scholar Allowances,Award Costs,Scholar,PIN063277,798
FCDO,CSC,24/03/2023,Scholar Allowances,Award Costs,Scholar,PIN063276,798
FCDO,CSC,24/03/2023,Scholar Allowances,Award Costs,Scholar,PIN063275,798
FCDO,CSC,24/03/2023,Scholar Allowances,Award Costs,Scholar,PIN063274,798
FCDO,CSC,24/03/2023,Scholar Allowances,Award Costs,Scholar,PIN063273,798
FCDO,CSC,24/03/2023,Scholar Allowances,Award Costs,Scholar,PIN063272,798
FCDO,CSC,24/03/2023,Scholar Allowances,Award Costs,Scholar,PIN063271,798
FCDO,CSC,24/03/2023,Scholar Allowances,Award Costs,Scholar,PIN063270,798
FCDO,CSC,24/03/2023,Scholar Allowances,Award Costs,Scholar,PIN063269,798
FCDO,CSC,24/03/2023,Scholar Allowances,Award Costs,Scholar,PIN063267,798
FCDO,CSC,24/03/2023,Scholar Allowances,Award Costs,Scholar,PIN063266,798
FCDO,CSC,24/03/2023,Scholar Allowances,Award Costs,Scholar,PIN063265,776
FCDO,CSC,24/03/2023,Scholar Allowances,Award Costs,Scholar,PIN063264,798
FCDO,CSC,24/03/2023,Scholar Allowances,Award Costs,Scholar,PIN063263,798
FCDO,CSC,24/03/2023,Scholar Allowances,Award Costs,Scholar,PIN063262,798
FCDO,CSC,24/03/2023,Scholar Allowances,Award Costs,Scholar,PIN063261,798
FCDO,CSC,24/03/2023,Scholar Allowances,Award Costs,Scholar,PIN063260,798
FCDO,CSC,24/03/2023,Scholar Allowances,Award Costs,Scholar,PIN063259,798
FCDO,CSC,24/03/2023,Scholar Allowances,Award Costs,Scholar,PIN063258,798
FCDO,CSC,24/03/2023,Scholar Allowances,Award Costs,Scholar,PIN063257,798
FCDO,CSC,24/03/2023,Scholar Allowances,Award Costs,Scholar,PIN063256,798
FCDO,CSC,24/03/2023,Scholar Allowances,Award Costs,Scholar,PIN063255,776
FCDO,CSC,24/03/2023,Scholar Allowances,Award Costs,Scholar,PIN063254,798
FCDO,CSC,24/03/2023,Scholar Allowances,Award Costs,Scholar,PIN063253,776
FCDO,CSC,24/03/2023,Scholar Allowances,Award Costs,Scholar,PIN063252,798
FCDO,CSC,24/03/2023,Scholar Allowances,Award Costs,Scholar,PIN063251,798
FCDO,CSC,24/03/2023,Scholar Allowances,Award Costs,Scholar,PIN063250,798
FCDO,CSC,24/03/2023,Scholar Allowances,Award Costs,Scholar,PIN063249,798
FCDO,CSC,24/03/2023,Scholar Allowances,Award Costs,Scholar,PIN063248,798
FCDO,CSC,24/03/2023,Scholar Allowances,Award Costs,Scholar,PIN063247,798
FCDO,CSC,24/03/2023,Scholar Allowances,Award Costs,Scholar,PIN063246,798
FCDO,CSC,24/03/2023,Scholar Allowances,Award Costs,Scholar,PIN063243,715.54
FCDO,CSC,24/03/2023,Scholar Allowances,Award Costs,Scholar,PIN063242,798
FCDO,CSC,24/03/2023,Scholar Allowances,Award Costs,Scholar,PIN063241,798
FCDO,CSC,24/03/2023,Scholar Allowances,Award Costs,Scholar,PIN063240,798
FCDO,CSC,24/03/2023,Scholar Allowances,Award Costs,Scholar,PIN063239,798
FCDO,CSC,24/03/2023,Scholar Allowances,Award Costs,Scholar,PIN063238,798
FCDO,CSC,24/03/2023,Scholar Allowances,Award Costs,Scholar,PIN063237,798
FCDO,CSC,24/03/2023,Scholar Allowances,Award Costs,Scholar,PIN063236,798
FCDO,CSC,24/03/2023,Scholar Allowances,Award Costs,Scholar,PIN063235,798
FCDO,CSC,24/03/2023,Scholar Allowances,Award Costs,Scholar,PIN063234,798
FCDO,CSC,24/03/2023,Scholar Allowances,Award Costs,Scholar,PIN063233,798
FCDO,CSC,24/03/2023,Scholar Allowances,Award Costs,Scholar,PIN063232,798
FCDO,CSC,24/03/2023,Scholar Allowances,Award Costs,Scholar,PIN063231,798
FCDO,CSC,24/03/2023,Scholar Allowances,Award Costs,Scholar,PIN063230,1230.06
FCDO,CSC,24/03/2023,Scholar Allowances,Award Costs,Scholar,PIN063229,798
FCDO,CSC,24/03/2023,Scholar Allowances,Award Costs,Scholar,PIN063228,798
FCDO,CSC,24/03/2023,Scholar Allowances,Award Costs,Scholar,PIN063226,798
FCDO,CSC,24/03/2023,Scholar Allowances,Award Costs,Scholar,PIN063225,798
FCDO,CSC,24/03/2023,Scholar Allowances,Award Costs,Scholar,PIN063224,798
FCDO,CSC,24/03/2023,Scholar Allowances,Award Costs,Scholar,PIN063223,798
FCDO,CSC,24/03/2023,Scholar Allowances,Award Costs,Scholar,PIN063222,798
FCDO,CSC,24/03/2023,Scholar Allowances,Award Costs,Scholar,PIN063221,798
FCDO,CSC,24/03/2023,Scholar Allowances,Award Costs,Scholar,PIN063220,798
FCDO,CSC,24/03/2023,Scholar Allowances,Award Costs,Scholar,PIN063219,798
FCDO,CSC,24/03/2023,Scholar Allowances,Award Costs,Scholar,PIN063217,532
FCDO,CSC,24/03/2023,Scholar Allowances,Award Costs,Scholar,PIN063216,798
FCDO,CSC,24/03/2023,Scholar Allowances,Award Costs,Scholar,PIN063215,798
FCDO,CSC,24/03/2023,Scholar Allowances,Award Costs,Scholar,PIN063214,1191
FCDO,CSC,24/03/2023,Scholar Allowances,Award Costs,Scholar,PIN063213,798
FCDO,CSC,24/03/2023,Scholar Allowances,Award Costs,Scholar,PIN063212,1584
FCDO,CSC,24/03/2023,Scholar Allowances,Award Costs,Scholar,PIN063211,798
FCDO,CSC,24/03/2023,Scholar Allowances,Award Costs,Scholar,PIN063210,1584
FCDO,CSC,24/03/2023,Scholar Allowances,Award Costs,Scholar,PIN063209,1556.12
FCDO,CSC,24/03/2023,Scholar Allowances,Award Costs,Scholar,PIN063208,4224
FCDO,CSC,24/03/2023,Scholar Allowances,Award Costs,Scholar,PIN063207,1191
FCDO,CSC,24/03/2023,Scholar Allowances,Award Costs,Scholar,PIN063206,798
FCDO,CSC,24/03/2023,Scholar Allowances,Award Costs,Scholar,PIN063205,1587
FCDO,CSC,24/03/2023,Scholar Allowances,Award Costs,Scholar,PIN063204,798
FCDO,CSC,24/03/2023,Scholar Allowances,Award Costs,Scholar,PIN063203,1584
FCDO,CSC,24/03/2023,Scholar Allowances,Award Costs,Scholar,PIN063202,798
FCDO,CSC,24/03/2023,Scholar Allowances,Award Costs,Scholar,PIN063201,1191
FCDO,CSC,24/03/2023,Scholar Allowances,Award Costs,Scholar,PIN063200,1980
FCDO,CSC,24/03/2023,Scholar Allowances,Award Costs,Scholar,PIN063199,798
FCDO,CSC,24/03/2023,Scholar Allowances,Award Costs,Scholar,PIN063198,798
FCDO,CSC,24/03/2023,Scholar Allowances,Award Costs,Scholar,PIN063197,1191
FCDO,CSC,24/03/2023,Scholar Allowances,Award Costs,Scholar,PIN063196,2063.24
FCDO,CSC,24/03/2023,Scholar Allowances,Award Costs,Scholar,PIN063195,1584
FCDO,CSC,24/03/2023,Scholar Allowances,Award Costs,Scholar,PIN063194,798
FCDO,CSC,24/03/2023,Scholar Allowances,Award Costs,Scholar,PIN063193,798
FCDO,CSC,24/03/2023,Scholar Allowances,Award Costs,Scholar,PIN063192,1584
FCDO,CSC,24/03/2023,Scholar Allowances,Award Costs,Scholar,PIN063191,798
FCDO,CSC,24/03/2023,Scholar Allowances,Award Costs,Scholar,PIN063190,1191
FCDO,CSC,24/03/2023,Scholar Allowances,Award Costs,Scholar,PIN063189,1191
FCDO,CSC,24/03/2023,Scholar Allowances,Award Costs,Scholar,PIN063188,798
FCDO,CSC,24/03/2023,Scholar Allowances,Award Costs,Scholar,PIN063187,798
FCDO,CSC,24/03/2023,Scholar Allowances,Award Costs,Scholar,PIN063186,1420
FCDO,CSC,24/03/2023,Scholar Allowances,Award Costs,Scholar,PIN063185,1158
FCDO,CSC,24/03/2023,Scholar Allowances,Award Costs,Scholar,PIN063184,798
FCDO,CSC,24/03/2023,Scholar Allowances,Award Costs,Scholar,PIN063183,798
FCDO,CSC,24/03/2023,Scholar Allowances,Award Costs,Scholar,PIN063182,798
FCDO,CSC,24/03/2023,Scholar Allowances,Award Costs,Scholar,PIN063181,1191
FCDO,CSC,24/03/2023,Scholar Allowances,Award Costs,Scholar,PIN063180,1584
FCDO,CSC,24/03/2023,Scholar Allowances,Award Costs,Scholar,PIN063179,1191
FCDO,CSC,24/03/2023,Scholar Allowances,Award Costs,Scholar,PIN063178,1584
FCDO,CSC,24/03/2023,Scholar Allowances,Award Costs,Scholar,PIN063177,1584
FCDO,CSC,24/03/2023,Scholar Allowances,Award Costs,Scholar,PIN063176,1587
FCDO,CSC,24/03/2023,Scholar Allowances,Award Costs,Scholar,PIN063175,1158
FCDO,CSC,24/03/2023,Scholar Allowances,Award Costs,Scholar,PIN063174,1158
FCDO,CSC,24/03/2023,Scholar Allowances,Award Costs,Scholar,PIN063173,1540
FCDO,CSC,24/03/2023,Scholar Allowances,Award Costs,Scholar,PIN063172,1191
FCDO,CSC,24/03/2023,Scholar Allowances,Award Costs,Scholar,PIN063171,798
FCDO,CSC,24/03/2023,Scholar Allowances,Award Costs,Scholar,PIN063170,1191
FCDO,CSC,24/03/2023,Scholar Allowances,Award Costs,Scholar,PIN063169,798
FCDO,CSC,24/03/2023,Scholar Allowances,Award Costs,Scholar,PIN063168,798
FCDO,CSC,24/03/2023,Scholar Allowances,Award Costs,Scholar,PIN063167,798
FCDO,CSC,24/03/2023,Scholar Allowances,Award Costs,Scholar,PIN063166,798
FCDO,CSC,24/03/2023,Scholar Allowances,Award Costs,Scholar,PIN063165,1584
FCDO,CSC,24/03/2023,Scholar Allowances,Award Costs,Scholar,PIN063164,1191
FCDO,CSC,24/03/2023,Scholar Allowances,Award Costs,Scholar,PIN063163,798
FCDO,CSC,24/03/2023,Scholar Allowances,Award Costs,Scholar,PIN063162,798
FCDO,CSC,24/03/2023,Scholar Allowances,Award Costs,Scholar,PIN063161,1980
FCDO,CSC,24/03/2023,Scholar Allowances,Award Costs,Scholar,PIN063160,798
FCDO,CSC,24/03/2023,Scholar Allowances,Award Costs,Scholar,PIN063159,1191
FCDO,CSC,24/03/2023,Scholar Allowances,Award Costs,Scholar,PIN063158,1191
FCDO,CSC,24/03/2023,Scholar Allowances,Award Costs,Scholar,PIN063157,1587
FCDO,CSC,24/03/2023,Scholar Allowances,Award Costs,Scholar,PIN063156,1191
FCDO,CSC,24/03/2023,Scholar Allowances,Award Costs,Scholar,PIN063155,798
FCDO,CSC,24/03/2023,Scholar Allowances,Award Costs,Scholar,PIN063154,1584
FCDO,CSC,24/03/2023,Scholar Allowances,Award Costs,Scholar,PIN063153,1587
FCDO,CSC,24/03/2023,Scholar Allowances,Award Costs,Scholar,PIN063152,1230.06
FCDO,CSC,24/03/2023,Scholar Allowances,Award Costs,Scholar,PIN063151,1191
FCDO,CSC,24/03/2023,Scholar Allowances,Award Costs,Scholar,PIN063150,798
FCDO,CSC,24/03/2023,Scholar Allowances,Award Costs,Scholar,PIN063149,798
FCDO,CSC,24/03/2023,Scholar Allowances,Award Costs,Scholar,PIN063148,798
FCDO,CSC,24/03/2023,Scholar Allowances,Award Costs,Scholar,PIN063147,798
FCDO,CSC,24/03/2023,Scholar Allowances,Award Costs,Scholar,PIN063146,1980
FCDO,CSC,24/03/2023,Scholar Allowances,Award Costs,Scholar,PIN063145,1191
FCDO,CSC,24/03/2023,Scholar Allowances,Award Costs,Scholar,PIN063144,798
FCDO,CSC,24/03/2023,Scholar Allowances,Award Costs,Scholar,PIN063143,1191
FCDO,CSC,24/03/2023,Scholar Allowances,Award Costs,Scholar,PIN063142,1587
FCDO,CSC,24/03/2023,Scholar Allowances,Award Costs,Scholar,PIN063141,1584
FCDO,CSC,24/03/2023,Scholar Allowances,Award Costs,Scholar,PIN063140,798
FCDO,CSC,24/03/2023,Scholar Allowances,Award Costs,Scholar,PIN063138,1587
FCDO,CSC,24/03/2023,Scholar Allowances,Award Costs,Scholar,PIN063137,1058
FCDO,CSC,24/03/2023,Scholar Allowances,Award Costs,Scholar,PIN063136,1056
FCDO,CSC,24/03/2023,Scholar Allowances,Award Costs,Scholar,PIN063135,2373
FCDO,CSC,24/03/2023,Scholar Allowances,Award Costs,Scholar,PIN063134,1191
FCDO,CSC,24/03/2023,Scholar Allowances,Award Costs,Scholar,PIN063133,1587
FCDO,CSC,24/03/2023,Scholar Allowances,Award Costs,Scholar,PIN063132,798
FCDO,CSC,24/03/2023,Scholar Allowances,Award Costs,Scholar,PIN063131,1587
FCDO,CSC,24/03/2023,Advances Repayments,Award Costs,Scholar,PIN063126,-700
FCDO,CSC,24/03/2023,Scholar Stipend,Award Costs,Scholar,PIN063124,597.68
FCDO,CSC,24/03/2023,Scholar Stipend,Award Costs,Scholar,PIN063123,3708
FCDO,CSC,24/03/2023,Scholar Stipend,Award Costs,Scholar,PIN063122,4548
FCDO,CSC,24/03/2023,Scholar Stipend,Award Costs,Scholar,PIN063121,697.3
FCDO,CSC,24/03/2023,Scholar Stipend,Award Costs,Scholar,PIN063119,747.1
FCDO,CSC,24/03/2023,Scholar Stipend,Award Costs,Scholar,PIN063118,3708
FCDO,CSC,24/03/2023,Scholar Stipend,Award Costs,Scholar,PIN063116,3708
FCDO,CSC,24/03/2023,Scholar Stipend,Award Costs,Scholar,PIN063115,3708
FCDO,CSC,24/03/2023,Scholar Stipend,Award Costs,Scholar,PIN063114,812.16
FCDO,CSC,24/03/2023,Scholar Stipend,Award Costs,Scholar,PIN063113,2472
FCDO,CSC,24/03/2023,Scholar Stipend,Award Costs,Scholar,PIN063112,3708
FCDO,CSC,24/03/2023,Scholar Stipend,Award Costs,Scholar,PIN063110,3708
FCDO,CSC,24/03/2023,Scholar Stipend,Award Costs,Scholar,PIN063109,1560.86
FCDO,CSC,24/03/2023,Scholar Stipend,Award Costs,Scholar,PIN063108,3708
FCDO,CSC,24/03/2023,Scholar Stipend,Award Costs,Scholar,PIN063106,3399
FCDO,CSC,24/03/2023,Scholar Stipend,Award Costs,Scholar,PIN063105,3399
FCDO,CSC,24/03/2023,Scholar Stipend,Award Costs,Scholar,PIN063104,3708
FCDO,CSC,24/03/2023,Scholar Stipend,Award Costs,Scholar,PIN063103,3708
FCDO,CSC,24/03/2023,Scholar Stipend,Award Costs,Scholar,PIN063102,3708
FCDO,CSC,24/03/2023,Scholar Stipend,Award Costs,Scholar,PIN063101,3717.44
FCDO,CSC,24/03/2023,Scholar Stipend,Award Costs,Scholar,PIN063100,4548
FCDO,CSC,24/03/2023,Scholar Stipend,Award Costs,Scholar,PIN063099,3708
FCDO,CSC,24/03/2023,Scholar Stipend,Award Costs,Scholar,PIN063098,3708
FCDO,CSC,24/03/2023,Scholar Stipend,Award Costs,Scholar,PIN063097,3708
FCDO,CSC,24/03/2023,Scholar Stipend,Award Costs,Scholar,PIN063096,4548
FCDO,CSC,24/03/2023,Scholar Stipend,Award Costs,Scholar,PIN063095,3708
FCDO,CSC,24/03/2023,Scholar Stipend,Award Costs,Scholar,PIN063094,3708
FCDO,CSC,24/03/2023,Scholar Stipend,Award Costs,Scholar,PIN063093,4548
FCDO,CSC,24/03/2023,Scholar Stipend,Award Costs,Scholar,PIN063092,3708
FCDO,CSC,24/03/2023,Scholar Stipend,Award Costs,Scholar,PIN063091,3708
FCDO,CSC,24/03/2023,Scholar Stipend,Award Costs,Scholar,PIN063090,3708
FCDO,CSC,24/03/2023,Scholar Stipend,Award Costs,Scholar,PIN063089,3708
FCDO,CSC,24/03/2023,Scholar Stipend,Award Costs,Scholar,PIN063088,3708
FCDO,CSC,24/03/2023,Scholar Stipend,Award Costs,Scholar,PIN063087,4548
FCDO,CSC,24/03/2023,Scholar Stipend,Award Costs,Scholar,PIN063086,4548
FCDO,CSC,24/03/2023,Scholar Stipend,Award Costs,Scholar,PIN063085,4548
FCDO,CSC,24/03/2023,Scholar Stipend,Award Costs,Scholar,PIN063084,3708
FCDO,CSC,24/03/2023,Scholar Stipend,Award Costs,Scholar,PIN063083,2472
FCDO,CSC,24/03/2023,Scholar Stipend,Award Costs,Scholar,PIN063082,3708
FCDO,CSC,24/03/2023,Scholar Stipend,Award Costs,Scholar,PIN063081,3708
FCDO,CSC,24/03/2023,Scholar Stipend,Award Costs,Scholar,PIN063080,3708
FCDO,CSC,24/03/2023,Scholar Stipend,Award Costs,Scholar,PIN063079,3708
FCDO,CSC,24/03/2023,Scholar Stipend,Award Costs,Scholar,PIN063078,3708
FCDO,CSC,24/03/2023,Scholar Stipend,Award Costs,Scholar,PIN063077,3708
FCDO,CSC,24/03/2023,Scholar Stipend,Award Costs,Scholar,PIN063076,3708
FCDO,CSC,24/03/2023,Scholar Stipend,Award Costs,Scholar,PIN063075,4548
FCDO,CSC,24/03/2023,Scholar Stipend,Award Costs,Scholar,PIN063074,3708
FCDO,CSC,24/03/2023,Scholar Stipend,Award Costs,Scholar,PIN063073,3708
FCDO,CSC,24/03/2023,Scholar Stipend,Award Costs,Scholar,PIN063072,3708
FCDO,CSC,24/03/2023,Scholar Stipend,Award Costs,Scholar,PIN063071,3708
FCDO,CSC,24/03/2023,Scholar Stipend,Award Costs,Scholar,PIN063070,3708
FCDO,CSC,24/03/2023,Scholar Stipend,Award Costs,Scholar,PIN063069,4548
FCDO,CSC,24/03/2023,Scholar Stipend,Award Costs,Scholar,PIN063068,3708
FCDO,CSC,24/03/2023,Scholar Stipend,Award Costs,Scholar,PIN063067,3708
FCDO,CSC,24/03/2023,Scholar Stipend,Award Costs,Scholar,PIN063066,3708
FCDO,CSC,24/03/2023,Scholar Stipend,Award Costs,Scholar,PIN063065,3708
FCDO,CSC,24/03/2023,Scholar Stipend,Award Costs,Scholar,PIN063064,3708
FCDO,CSC,24/03/2023,Scholar Stipend,Award Costs,Scholar,PIN063063,3708
FCDO,CSC,24/03/2023,Scholar Stipend,Award Costs,Scholar,PIN063062,3708
FCDO,CSC,24/03/2023,Scholar Stipend,Award Costs,Scholar,PIN063061,4548
FCDO,CSC,24/03/2023,Scholar Stipend,Award Costs,Scholar,PIN063060,3708
FCDO,CSC,24/03/2023,Scholar Stipend,Award Costs,Scholar,PIN063059,3708
FCDO,CSC,24/03/2023,Scholar Stipend,Award Costs,Scholar,PIN063058,3708
FCDO,CSC,24/03/2023,Scholar Stipend,Award Costs,Scholar,PIN063057,3708
FCDO,CSC,24/03/2023,Scholar Stipend,Award Costs,Scholar,PIN063056,3708
FCDO,CSC,24/03/2023,Scholar Stipend,Award Costs,Scholar,PIN063055,3708
FCDO,CSC,24/03/2023,Scholar Stipend,Award Costs,Scholar,PIN063054,3708
FCDO,CSC,24/03/2023,Scholar Stipend,Award Costs,Scholar,PIN063053,3708
FCDO,CSC,24/03/2023,Scholar Stipend,Award Costs,Scholar,PIN063052,3708
FCDO,CSC,24/03/2023,Scholar Stipend,Award Costs,Scholar,PIN063051,3708
FCDO,CSC,24/03/2023,Scholar Stipend,Award Costs,Scholar,PIN063050,3708
FCDO,CSC,24/03/2023,Scholar Stipend,Award Costs,Scholar,PIN063049,3708
FCDO,CSC,24/03/2023,Scholar Stipend,Award Costs,Scholar,PIN063048,3708
FCDO,CSC,24/03/2023,Scholar Stipend,Award Costs,Scholar,PIN063047,3708
FCDO,CSC,24/03/2023,Scholar Stipend,Award Costs,Scholar,PIN063046,3708
FCDO,CSC,24/03/2023,Scholar Stipend,Award Costs,Scholar,PIN063045,3708
FCDO,CSC,24/03/2023,Scholar Stipend,Award Costs,Scholar,PIN063044,3708
FCDO,CSC,24/03/2023,Scholar Stipend,Award Costs,Scholar,PIN063043,3708
FCDO,CSC,24/03/2023,Scholar Stipend,Award Costs,Scholar,PIN063042,4548
FCDO,CSC,24/03/2023,Scholar Stipend,Award Costs,Scholar,PIN063041,3708
FCDO,CSC,24/03/2023,Scholar Stipend,Award Costs,Scholar,PIN063040,3708
FCDO,CSC,24/03/2023,Scholar Stipend,Award Costs,Scholar,PIN063039,3708
FCDO,CSC,24/03/2023,Scholar Stipend,Award Costs,Scholar,PIN063038,3708
FCDO,CSC,24/03/2023,Scholar Stipend,Award Costs,Scholar,PIN063037,3708
FCDO,CSC,24/03/2023,Scholar Stipend,Award Costs,Scholar,PIN063036,3708
FCDO,CSC,24/03/2023,Scholar Stipend,Award Costs,Scholar,PIN063035,3708
FCDO,CSC,24/03/2023,Scholar Stipend,Award Costs,Scholar,PIN063034,3708
FCDO,CSC,24/03/2023,Scholar Stipend,Award Costs,Scholar,PIN063033,3708
FCDO,CSC,24/03/2023,Scholar Stipend,Award Costs,Scholar,PIN063032,3708
FCDO,CSC,24/03/2023,Scholar Stipend,Award Costs,Scholar,PIN063031,3708
FCDO,CSC,24/03/2023,Scholar Stipend,Award Costs,Scholar,PIN063030,4548
FCDO,CSC,24/03/2023,Scholar Stipend,Award Costs,Scholar,PIN063029,3708
FCDO,CSC,24/03/2023,Scholar Stipend,Award Costs,Scholar,PIN063028,3708
FCDO,CSC,24/03/2023,Scholar Stipend,Award Costs,Scholar,PIN063027,4548
FCDO,CSC,24/03/2023,Scholar Stipend,Award Costs,Scholar,PIN063026,3708
FCDO,CSC,24/03/2023,Scholar Stipend,Award Costs,Scholar,PIN063025,3708
FCDO,CSC,24/03/2023,Scholar Stipend,Award Costs,Scholar,PIN063024,3708
FCDO,CSC,24/03/2023,Scholar Stipend,Award Costs,Scholar,PIN063023,3708
FCDO,CSC,24/03/2023,Scholar Stipend,Award Costs,Scholar,PIN063022,3708
FCDO,CSC,24/03/2023,Scholar Stipend,Award Costs,Scholar,PIN063021,3708
FCDO,CSC,24/03/2023,Scholar Stipend,Award Costs,Scholar,PIN063020,3708
FCDO,CSC,24/03/2023,Scholar Stipend,Award Costs,Scholar,PIN063019,4548
FCDO,CSC,24/03/2023,Scholar Stipend,Award Costs,Scholar,PIN063018,3708
FCDO,CSC,24/03/2023,Scholar Stipend,Award Costs,Scholar,PIN063017,3708
FCDO,CSC,24/03/2023,Scholar Stipend,Award Costs,Scholar,PIN063016,4548
FCDO,CSC,24/03/2023,Scholar Stipend,Award Costs,Scholar,PIN063015,3708
FCDO,CSC,24/03/2023,Scholar Stipend,Award Costs,Scholar,PIN063014,3708
FCDO,CSC,24/03/2023,Scholar Stipend,Award Costs,Scholar,PIN063013,3708
FCDO,CSC,24/03/2023,Scholar Stipend,Award Costs,Scholar,PIN063012,4548
FCDO,CSC,24/03/2023,Scholar Stipend,Award Costs,Scholar,PIN063011,3708
FCDO,CSC,24/03/2023,Scholar Stipend,Award Costs,Scholar,PIN063010,3708
FCDO,CSC,24/03/2023,Scholar Stipend,Award Costs,Scholar,PIN063009,4548
FCDO,CSC,24/03/2023,Scholar Stipend,Award Costs,Scholar,PIN063008,4548
FCDO,CSC,24/03/2023,Scholar Stipend,Award Costs,Scholar,PIN063007,3708
FCDO,CSC,24/03/2023,Scholar Stipend,Award Costs,Scholar,PIN063006,3708
FCDO,CSC,24/03/2023,Scholar Stipend,Award Costs,Scholar,PIN063005,3708
FCDO,CSC,24/03/2023,Scholar Stipend,Award Costs,Scholar,PIN063004,4548
FCDO,CSC,24/03/2023,Scholar Stipend,Award Costs,Scholar,PIN063003,4548
FCDO,CSC,24/03/2023,Scholar Stipend,Award Costs,Scholar,PIN063002,3708
FCDO,CSC,24/03/2023,Scholar Stipend,Award Costs,Scholar,PIN063001,3708
FCDO,CSC,24/03/2023,Scholar Stipend,Award Costs,Scholar,PIN063000,4548
FCDO,CSC,24/03/2023,Scholar Stipend,Award Costs,Scholar,PIN062999,3708
FCDO,CSC,24/03/2023,Scholar Stipend,Award Costs,Scholar,PIN062998,3708
FCDO,CSC,24/03/2023,Scholar Stipend,Award Costs,Scholar,PIN062997,3708
FCDO,CSC,24/03/2023,Scholar Stipend,Award Costs,Scholar,PIN062996,3708
FCDO,CSC,24/03/2023,Scholar Stipend,Award Costs,Scholar,PIN062995,4548
FCDO,CSC,24/03/2023,Scholar Stipend,Award Costs,Scholar,PIN062994,3708
FCDO,CSC,24/03/2023,Scholar Stipend,Award Costs,Scholar,PIN062993,3708
FCDO,CSC,24/03/2023,Scholar Stipend,Award Costs,Scholar,PIN062992,4548
FCDO,CSC,24/03/2023,Scholar Stipend,Award Costs,Scholar,PIN062991,3708
FCDO,CSC,24/03/2023,Scholar Stipend,Award Costs,Scholar,PIN062990,3708
FCDO,CSC,24/03/2023,Scholar Stipend,Award Costs,Scholar,PIN062989,3708
FCDO,CSC,24/03/2023,Scholar Stipend,Award Costs,Scholar,PIN062988,3708
FCDO,CSC,24/03/2023,Scholar Stipend,Award Costs,Scholar,PIN062987,3708
FCDO,CSC,24/03/2023,Scholar Stipend,Award Costs,Scholar,PIN062986,4548
FCDO,CSC,24/03/2023,Scholar Stipend,Award Costs,Scholar,PIN062985,4548
FCDO,CSC,24/03/2023,Scholar Stipend,Award Costs,Scholar,PIN062984,3708
FCDO,CSC,24/03/2023,Scholar Stipend,Award Costs,Scholar,PIN062983,4548
FCDO,CSC,24/03/2023,Scholar Stipend,Award Costs,Scholar,PIN062982,3708
FCDO,CSC,24/03/2023,Scholar Stipend,Award Costs,Scholar,PIN062981,4548
FCDO,CSC,24/03/2023,Scholar Stipend,Award Costs,Scholar,PIN062980,3708
FCDO,CSC,24/03/2023,Scholar Stipend,Award Costs,Scholar,PIN062979,3708
FCDO,CSC,24/03/2023,Scholar Stipend,Award Costs,Scholar,PIN062978,4548
FCDO,CSC,24/03/2023,Scholar Stipend,Award Costs,Scholar,PIN062977,3708
FCDO,CSC,24/03/2023,Scholar Stipend,Award Costs,Scholar,PIN062976,3708
FCDO,CSC,24/03/2023,Scholar Stipend,Award Costs,Scholar,PIN062975,3708
FCDO,CSC,24/03/2023,Scholar Stipend,Award Costs,Scholar,PIN062974,3708
FCDO,CSC,24/03/2023,Scholar Stipend,Award Costs,Scholar,PIN062972,3708
FCDO,CSC,24/03/2023,Scholar Stipend,Award Costs,Scholar,PIN062971,3708
FCDO,CSC,24/03/2023,Scholar Stipend,Award Costs,Scholar,PIN062970,4548
FCDO,CSC,24/03/2023,Scholar Stipend,Award Costs,Scholar,PIN062969,4548
FCDO,CSC,24/03/2023,Scholar Stipend,Award Costs,Scholar,PIN062968,3708
FCDO,CSC,24/03/2023,Scholar Stipend,Award Costs,Scholar,PIN062967,3708
FCDO,CSC,24/03/2023,Scholar Stipend,Award Costs,Scholar,PIN062966,3708
FCDO,CSC,24/03/2023,Scholar Stipend,Award Costs,Scholar,PIN062965,4548
FCDO,CSC,24/03/2023,Scholar Stipend,Award Costs,Scholar,PIN062964,3708
FCDO,CSC,24/03/2023,Scholar Stipend,Award Costs,Scholar,PIN062963,3708
FCDO,CSC,24/03/2023,Scholar Stipend,Award Costs,Scholar,PIN062962,3708
FCDO,CSC,24/03/2023,Scholar Stipend,Award Costs,Scholar,PIN062961,3708
FCDO,CSC,24/03/2023,Scholar Stipend,Award Costs,Scholar,PIN062960,3708
FCDO,CSC,24/03/2023,Scholar Stipend,Award Costs,Scholar,PIN062959,3708
FCDO,CSC,24/03/2023,Scholar Stipend,Award Costs,Scholar,PIN062958,3708
FCDO,CSC,24/03/2023,Scholar Stipend,Award Costs,Scholar,PIN062957,3708
FCDO,CSC,24/03/2023,Scholar Stipend,Award Costs,Scholar,PIN062956,3708
FCDO,CSC,24/03/2023,Scholar Stipend,Award Costs,Scholar,PIN062955,4548
FCDO,CSC,24/03/2023,Scholar Stipend,Award Costs,Scholar,PIN062954,3708
FCDO,CSC,24/03/2023,Scholar Stipend,Award Costs,Scholar,PIN062953,3708
FCDO,CSC,24/03/2023,Scholar Stipend,Award Costs,Scholar,PIN062952,3708
FCDO,CSC,24/03/2023,Scholar Stipend,Award Costs,Scholar,PIN062951,3708
FCDO,CSC,24/03/2023,Scholar Stipend,Award Costs,Scholar,PIN062950,3708
FCDO,CSC,24/03/2023,Scholar Stipend,Award Costs,Scholar,PIN062949,4548
FCDO,CSC,24/03/2023,Scholar Stipend,Award Costs,Scholar,PIN062948,3708
FCDO,CSC,24/03/2023,Scholar Stipend,Award Costs,Scholar,PIN062947,3708
FCDO,CSC,24/03/2023,Scholar Stipend,Award Costs,Scholar,PIN062946,3708
FCDO,CSC,24/03/2023,Scholar Stipend,Award Costs,Scholar,PIN062945,3708
FCDO,CSC,24/03/2023,Scholar Stipend,Award Costs,Scholar,PIN062944,3708
FCDO,CSC,24/03/2023,Scholar Stipend,Award Costs,Scholar,PIN062943,3708
FCDO,CSC,24/03/2023,Scholar Stipend,Award Costs,Scholar,PIN062942,3708
FCDO,CSC,24/03/2023,Scholar Stipend,Award Costs,Scholar,PIN062941,3708
FCDO,CSC,24/03/2023,Scholar Stipend,Award Costs,Scholar,PIN062940,4548
FCDO,CSC,24/03/2023,Scholar Stipend,Award Costs,Scholar,PIN062939,4548
FCDO,CSC,24/03/2023,Scholar Stipend,Award Costs,Scholar,PIN062938,3708
FCDO,CSC,24/03/2023,Scholar Stipend,Award Costs,Scholar,PIN062937,3708
FCDO,CSC,24/03/2023,Scholar Stipend,Award Costs,Scholar,PIN062936,3708
FCDO,CSC,24/03/2023,Scholar Stipend,Award Costs,Scholar,PIN062935,3708
FCDO,CSC,24/03/2023,Scholar Stipend,Award Costs,Scholar,PIN062934,3708
FCDO,CSC,24/03/2023,Scholar Stipend,Award Costs,Scholar,PIN062933,3708
FCDO,CSC,24/03/2023,Scholar Stipend,Award Costs,Scholar,PIN062932,3708
FCDO,CSC,24/03/2023,Scholar Stipend,Award Costs,Scholar,PIN062931,3708
FCDO,CSC,24/03/2023,Scholar Stipend,Award Costs,Scholar,PIN062930,3708
FCDO,CSC,24/03/2023,Scholar Stipend,Award Costs,Scholar,PIN062929,3708
FCDO,CSC,24/03/2023,Scholar Stipend,Award Costs,Scholar,PIN062928,3708
FCDO,CSC,24/03/2023,Scholar Stipend,Award Costs,Scholar,PIN062927,3708
FCDO,CSC,24/03/2023,Scholar Stipend,Award Costs,Scholar,PIN062926,3708
FCDO,CSC,24/03/2023,Scholar Stipend,Award Costs,Scholar,PIN062925,3708
FCDO,CSC,24/03/2023,Scholar Stipend,Award Costs,Scholar,PIN062924,3708
FCDO,CSC,24/03/2023,Scholar Stipend,Award Costs,Scholar,PIN062922,1854
FCDO,CSC,24/03/2023,Scholar Stipend,Award Costs,Scholar,PIN062921,3708
FCDO,CSC,24/03/2023,Scholar Stipend,Award Costs,Scholar,PIN062920,3708
FCDO,CSC,24/03/2023,Scholar Stipend,Award Costs,Scholar,PIN062919,3708
FCDO,CSC,24/03/2023,Scholar Stipend,Award Costs,Scholar,PIN062918,3708
FCDO,CSC,24/03/2023,Scholar Stipend,Award Costs,Scholar,PIN062917,3708
FCDO,CSC,24/03/2023,Scholar Stipend,Award Costs,Scholar,PIN062916,3708
FCDO,CSC,24/03/2023,Scholar Stipend,Award Costs,Scholar,PIN062915,3708
FCDO,CSC,24/03/2023,Scholar Stipend,Award Costs,Scholar,PIN062914,3708
FCDO,CSC,24/03/2023,Scholar Stipend,Award Costs,Scholar,PIN062913,3708
FCDO,CSC,24/03/2023,Scholar Stipend,Award Costs,Scholar,PIN062912,3708
FCDO,CSC,24/03/2023,Scholar Stipend,Award Costs,Scholar,PIN062911,3708
FCDO,CSC,24/03/2023,Scholar Stipend,Award Costs,Scholar,PIN062910,4548
FCDO,CSC,24/03/2023,Scholar Stipend,Award Costs,Scholar,PIN062909,974.59
FCDO,CSC,24/03/2023,Scholar Stipend,Award Costs,Scholar,PIN062908,4548
FCDO,CSC,24/03/2023,Scholar Stipend,Award Costs,Scholar,PIN062907,4548
FCDO,CSC,24/03/2023,Scholar Stipend,Award Costs,Scholar,PIN062906,3708
FCDO,CSC,24/03/2023,Scholar Stipend,Award Costs,Scholar,PIN062905,1145.56
FCDO,CSC,24/03/2023,Scholar Stipend,Award Costs,Scholar,PIN062904,3708
FCDO,CSC,24/03/2023,Scholar Stipend,Award Costs,Scholar,PIN062903,3708
FCDO,CSC,24/03/2023,Scholar Stipend,Award Costs,Scholar,PIN062902,4548
FCDO,CSC,24/03/2023,Scholar Stipend,Award Costs,Scholar,PIN062901,3708
FCDO,CSC,24/03/2023,Scholar Stipend,Award Costs,Scholar,PIN062900,1236
FCDO,CSC,24/03/2023,Scholar Stipend,Award Costs,Scholar,PIN062899,3708
FCDO,CSC,24/03/2023,Scholar Stipend,Award Costs,Scholar,PIN062898,3708
FCDO,CSC,24/03/2023,Scholar Stipend,Award Costs,Scholar,PIN062897,4548
FCDO,CSC,24/03/2023,Scholar Stipend,Award Costs,Scholar,PIN062896,3708
FCDO,CSC,24/03/2023,Scholar Stipend,Award Costs,Scholar,PIN062895,3708
FCDO,CSC,24/03/2023,Scholar Stipend,Award Costs,Scholar,PIN062894,3708
FCDO,CSC,24/03/2023,Scholar Stipend,Award Costs,Scholar,PIN062893,3708
FCDO,CSC,24/03/2023,Scholar Stipend,Award Costs,Scholar,PIN062892,3708
FCDO,CSC,24/03/2023,Scholar Stipend,Award Costs,Scholar,PIN062891,3708
FCDO,CSC,24/03/2023,Scholar Stipend,Award Costs,Scholar,PIN062890,3708
FCDO,CSC,24/03/2023,Scholar Stipend,Award Costs,Scholar,PIN062889,3708
FCDO,CSC,24/03/2023,Scholar Stipend,Award Costs,Scholar,PIN062888,3708
FCDO,CSC,24/03/2023,Scholar Stipend,Award Costs,Scholar,PIN062887,3708
FCDO,CSC,24/03/2023,Scholar Stipend,Award Costs,Scholar,PIN062886,3708
FCDO,CSC,24/03/2023,Scholar Stipend,Award Costs,Scholar,PIN062885,3708
FCDO,CSC,24/03/2023,Scholar Stipend,Award Costs,Scholar,PIN062884,3708
FCDO,CSC,24/03/2023,Scholar Stipend,Award Costs,Scholar,PIN062883,527.9
FCDO,CSC,24/03/2023,Scholar Stipend,Award Costs,Scholar,PIN062882,3458.7
FCDO,CSC,24/03/2023,Scholar Stipend,Award Costs,Scholar,PIN062880,4548
FCDO,CSC,24/03/2023,Scholar Stipend,Award Costs,Scholar,PIN062879,3708
FCDO,CSC,24/03/2023,Scholar Stipend,Award Costs,Scholar,PIN062878,3708
FCDO,CSC,24/03/2023,Scholar Stipend,Award Costs,Scholar,PIN062877,3708
FCDO,CSC,24/03/2023,Scholar Stipend,Award Costs,Scholar,PIN062876,3708
FCDO,CSC,24/03/2023,Scholar Stipend,Award Costs,Scholar,PIN062875,3708
FCDO,CSC,24/03/2023,Scholar Stipend,Award Costs,Scholar,PIN062874,3708
FCDO,CSC,24/03/2023,Scholar Stipend,Award Costs,Scholar,PIN062873,4548
FCDO,CSC,24/03/2023,Scholar Stipend,Award Costs,Scholar,PIN062872,3708
FCDO,CSC,24/03/2023,Scholar Stipend,Award Costs,Scholar,PIN062871,3708
FCDO,CSC,24/03/2023,Scholar Stipend,Award Costs,Scholar,PIN062870,3708
FCDO,CSC,24/03/2023,Scholar Stipend,Award Costs,Scholar,PIN062869,3708
FCDO,CSC,24/03/2023,Scholar Stipend,Award Costs,Scholar,PIN062868,3708
FCDO,CSC,24/03/2023,Scholar Stipend,Award Costs,Scholar,PIN062867,3708
FCDO,CSC,24/03/2023,Scholar Stipend,Award Costs,Scholar,PIN062866,3708
FCDO,CSC,24/03/2023,Scholar Stipend,Award Costs,Scholar,PIN062865,4548
FCDO,CSC,24/03/2023,Scholar Stipend,Award Costs,Scholar,PIN062864,3708
FCDO,CSC,24/03/2023,Scholar Stipend,Award Costs,Scholar,PIN062863,3708
FCDO,CSC,24/03/2023,Scholar Stipend,Award Costs,Scholar,PIN062862,3708
FCDO,CSC,24/03/2023,Scholar Stipend,Award Costs,Scholar,PIN062861,3708
FCDO,CSC,24/03/2023,Scholar Stipend,Award Costs,Scholar,PIN062860,4548
FCDO,CSC,24/03/2023,Scholar Stipend,Award Costs,Scholar,PIN062859,3708
FCDO,CSC,24/03/2023,Scholar Stipend,Award Costs,Scholar,PIN062858,3708
FCDO,CSC,24/03/2023,Scholar Stipend,Award Costs,Scholar,PIN062857,3708
FCDO,CSC,24/03/2023,Scholar Stipend,Award Costs,Scholar,PIN062856,3708
FCDO,CSC,24/03/2023,Scholar Stipend,Award Costs,Scholar,PIN062855,3708
FCDO,CSC,24/03/2023,Scholar Stipend,Award Costs,Scholar,PIN062854,3708
FCDO,CSC,24/03/2023,Scholar Stipend,Award Costs,Scholar,PIN062853,3708
FCDO,CSC,24/03/2023,Scholar Stipend,Award Costs,Scholar,PIN062852,3708
FCDO,CSC,24/03/2023,Scholar Stipend,Award Costs,Scholar,PIN062851,3708
FCDO,CSC,24/03/2023,Scholar Stipend,Award Costs,Scholar,PIN062850,3708
FCDO,CSC,24/03/2023,Scholar Stipend,Award Costs,Scholar,PIN062849,3708
FCDO,CSC,24/03/2023,Scholar Stipend,Award Costs,Scholar,PIN062848,3708
FCDO,CSC,24/03/2023,Scholar Stipend,Award Costs,Scholar,PIN062847,3708
FCDO,CSC,24/03/2023,Scholar Stipend,Award Costs,Scholar,PIN062846,3708
FCDO,CSC,24/03/2023,Scholar Stipend,Award Costs,Scholar,PIN062845,3708
FCDO,CSC,24/03/2023,Scholar Stipend,Award Costs,Scholar,PIN062844,3708
FCDO,CSC,24/03/2023,Scholar Stipend,Award Costs,Scholar,PIN062843,4548
FCDO,CSC,24/03/2023,Scholar Stipend,Award Costs,Scholar,PIN062842,3708
FCDO,CSC,24/03/2023,Scholar Stipend,Award Costs,Scholar,PIN062841,1236
FCDO,CSC,24/03/2023,Scholar Stipend,Award Costs,Scholar,PIN062840,3708
FCDO,CSC,24/03/2023,Scholar Stipend,Award Costs,Scholar,PIN062839,1236
FCDO,CSC,24/03/2023,Scholar Stipend,Award Costs,Scholar,PIN062838,3708
FCDO,CSC,24/03/2023,Scholar Stipend,Award Costs,Scholar,PIN062837,3708
FCDO,CSC,24/03/2023,Scholar Stipend,Award Costs,Scholar,PIN062836,3708
FCDO,CSC,24/03/2023,Scholar Stipend,Award Costs,Scholar,PIN062835,3708
FCDO,CSC,24/03/2023,Scholar Stipend,Award Costs,Scholar,PIN062834,3708
FCDO,CSC,24/03/2023,Scholar Stipend,Award Costs,Scholar,PIN062833,3708
FCDO,CSC,24/03/2023,Scholar Stipend,Award Costs,Scholar,PIN062832,3708
FCDO,CSC,24/03/2023,Scholar Stipend,Award Costs,Scholar,PIN062831,3708
FCDO,CSC,24/03/2023,Scholar Stipend,Award Costs,Scholar,PIN062830,3708
FCDO,CSC,24/03/2023,Scholar Stipend,Award Costs,Scholar,PIN062829,4268
FCDO,CSC,24/03/2023,Scholar Stipend,Award Costs,Scholar,PIN062828,3708
FCDO,CSC,24/03/2023,Scholar Stipend,Award Costs,Scholar,PIN062827,4231.64
FCDO,CSC,24/03/2023,Scholar Stipend,Award Costs,Scholar,PIN062826,3708
FCDO,CSC,24/03/2023,Scholar Stipend,Award Costs,Scholar,PIN062825,3708
FCDO,CSC,24/03/2023,Scholar Stipend,Award Costs,Scholar,PIN062824,4548
FCDO,CSC,24/03/2023,Scholar Stipend,Award Costs,Scholar,PIN062823,3708
FCDO,CSC,24/03/2023,Scholar Stipend,Award Costs,Scholar,PIN062822,3708
FCDO,CSC,24/03/2023,Scholar Stipend,Award Costs,Scholar,PIN062821,3708
FCDO,CSC,24/03/2023,Scholar Stipend,Award Costs,Scholar,PIN062820,1195.37
FCDO,CSC,24/03/2023,Scholar Stipend,Award Costs,Scholar,PIN062819,3708
FCDO,CSC,24/03/2023,Scholar Stipend,Award Costs,Scholar,PIN062818,1236
FCDO,CSC,24/03/2023,Scholar Stipend,Award Costs,Scholar,PIN062817,3708
FCDO,CSC,24/03/2023,Scholar Stipend,Award Costs,Scholar,PIN062816,3708
FCDO,CSC,24/03/2023,Scholar Stipend,Award Costs,Scholar,PIN062815,4548
FCDO,CSC,24/03/2023,Scholar Stipend,Award Costs,Scholar,PIN062814,3708
FCDO,CSC,24/03/2023,Scholar Stipend,Award Costs,Scholar,PIN062813,3708
FCDO,CSC,24/03/2023,Scholar Stipend,Award Costs,Scholar,PIN062812,758
FCDO,CSC,24/03/2023,Scholar Stipend,Award Costs,Scholar,PIN062811,3708
FCDO,CSC,24/03/2023,Scholar Stipend,Award Costs,Scholar,PIN062810,3708
FCDO,CSC,24/03/2023,Scholar Stipend,Award Costs,Scholar,PIN062809,4548
FCDO,CSC,24/03/2023,Scholar Stipend,Award Costs,Scholar,PIN062808,3708
FCDO,CSC,24/03/2023,Scholar Stipend,Award Costs,Scholar,PIN062807,3708
FCDO,CSC,24/03/2023,Scholar Stipend,Award Costs,Scholar,PIN062806,3708
FCDO,CSC,24/03/2023,Scholar Stipend,Award Costs,Scholar,PIN062805,3708
FCDO,CSC,24/03/2023,Scholar Stipend,Award Costs,Scholar,PIN062804,3708
FCDO,CSC,24/03/2023,Scholar Stipend,Award Costs,Scholar,PIN062803,4548
FCDO,CSC,24/03/2023,Scholar Stipend,Award Costs,Scholar,PIN062802,3708
FCDO,CSC,24/03/2023,Scholar Stipend,Award Costs,Scholar,PIN062801,4548
FCDO,CSC,24/03/2023,Scholar Stipend,Award Costs,Scholar,PIN062800,3708
FCDO,CSC,24/03/2023,Scholar Stipend,Award Costs,Scholar,PIN062799,3708
FCDO,CSC,24/03/2023,Scholar Stipend,Award Costs,Scholar,PIN062798,3708
FCDO,CSC,24/03/2023,Scholar Stipend,Award Costs,Scholar,PIN062796,3708
FCDO,CSC,24/03/2023,Scholar Stipend,Award Costs,Scholar,PIN062795,3708
FCDO,CSC,24/03/2023,Scholar Stipend,Award Costs,Scholar,PIN062794,3708
FCDO,CSC,24/03/2023,Scholar Stipend,Award Costs,Scholar,PIN062793,4548
FCDO,CSC,24/03/2023,Scholar Stipend,Award Costs,Scholar,PIN062792,3708
FCDO,CSC,24/03/2023,Scholar Stipend,Award Costs,Scholar,PIN062791,3708
FCDO,CSC,24/03/2023,Scholar Stipend,Award Costs,Scholar,PIN062790,3708
FCDO,CSC,24/03/2023,Scholar Stipend,Award Costs,Scholar,PIN062789,3708
FCDO,CSC,24/03/2023,Scholar Stipend,Award Costs,Scholar,PIN062788,3708
FCDO,CSC,24/03/2023,Scholar Stipend,Award Costs,Scholar,PIN062787,3708
FCDO,CSC,24/03/2023,Scholar Stipend,Award Costs,Scholar,PIN062786,3708
FCDO,CSC,24/03/2023,Scholar Stipend,Award Costs,Scholar,PIN062785,1516
FCDO,CSC,24/03/2023,Scholar Stipend,Award Costs,Scholar,PIN062784,3708
FCDO,CSC,24/03/2023,Scholar Stipend,Award Costs,Scholar,PIN062783,4548
FCDO,CSC,24/03/2023,Scholar Stipend,Award Costs,Scholar,PIN062782,4548
FCDO,CSC,24/03/2023,Scholar Stipend,Award Costs,Scholar,PIN062781,3708
FCDO,CSC,24/03/2023,Scholar Stipend,Award Costs,Scholar,PIN062780,3708
FCDO,CSC,24/03/2023,Scholar Stipend,Award Costs,Scholar,PIN062779,3708
FCDO,CSC,24/03/2023,Scholar Stipend,Award Costs,Scholar,PIN062778,3708
FCDO,CSC,24/03/2023,Scholar Stipend,Award Costs,Scholar,PIN062777,3708
FCDO,CSC,24/03/2023,Scholar Stipend,Award Costs,Scholar,PIN062776,3708
FCDO,CSC,24/03/2023,Scholar Stipend,Award Costs,Scholar,PIN062775,3708
FCDO,CSC,24/03/2023,Scholar Stipend,Award Costs,Scholar,PIN062774,4548
FCDO,CSC,24/03/2023,Scholar Stipend,Award Costs,Scholar,PIN062773,3708
FCDO,CSC,24/03/2023,Scholar Stipend,Award Costs,Scholar,PIN062772,4548
FCDO,CSC,24/03/2023,Scholar Stipend,Award Costs,Scholar,PIN062771,3708
FCDO,CSC,24/03/2023,Scholar Stipend,Award Costs,Scholar,PIN062770,3708
FCDO,CSC,24/03/2023,Scholar Stipend,Award Costs,Scholar,PIN062769,3708
FCDO,CSC,24/03/2023,Scholar Stipend,Award Costs,Scholar,PIN062768,3708
FCDO,CSC,24/03/2023,Scholar Stipend,Award Costs,Scholar,PIN062767,4548
FCDO,CSC,24/03/2023,Scholar Stipend,Award Costs,Scholar,PIN062766,3708
FCDO,CSC,24/03/2023,Scholar Stipend,Award Costs,Scholar,PIN062765,3708
FCDO,CSC,24/03/2023,Scholar Stipend,Award Costs,Scholar,PIN062764,4548
FCDO,CSC,24/03/2023,Scholar Stipend,Award Costs,Scholar,PIN062763,3708
FCDO,CSC,24/03/2023,Scholar Stipend,Award Costs,Scholar,PIN062762,3708
FCDO,CSC,24/03/2023,Scholar Stipend,Award Costs,Scholar,PIN062761,3708
FCDO,CSC,24/03/2023,Scholar Stipend,Award Costs,Scholar,PIN062760,3708
FCDO,CSC,24/03/2023,Scholar Stipend,Award Costs,Scholar,PIN062759,3708
FCDO,CSC,24/03/2023,Scholar Stipend,Award Costs,Scholar,PIN062758,3708
FCDO,CSC,24/03/2023,Scholar Stipend,Award Costs,Scholar,PIN062757,2274
FCDO,CSC,24/03/2023,Scholar Stipend,Award Costs,Scholar,PIN062756,3708
FCDO,CSC,24/03/2023,Scholar Stipend,Award Costs,Scholar,PIN062755,3708
FCDO,CSC,24/03/2023,Scholar Stipend,Award Costs,Scholar,PIN062754,4548
FCDO,CSC,24/03/2023,Scholar Stipend,Award Costs,Scholar,PIN062753,4548
FCDO,CSC,24/03/2023,Scholar Stipend,Award Costs,Scholar,PIN062752,2553.22
FCDO,CSC,24/03/2023,Scholar Stipend,Award Costs,Scholar,PIN062751,3708
FCDO,CSC,24/03/2023,Scholar Stipend,Award Costs,Scholar,PIN062750,4548
FCDO,CSC,24/03/2023,Scholar Stipend,Award Costs,Scholar,PIN062749,3708
FCDO,CSC,24/03/2023,Scholar Stipend,Award Costs,Scholar,PIN062748,3708
FCDO,CSC,24/03/2023,Scholar Stipend,Award Costs,Scholar,PIN062747,1854
FCDO,CSC,24/03/2023,Scholar Stipend,Award Costs,Scholar,PIN062746,1236
FCDO,CSC,24/03/2023,Scholar Stipend,Award Costs,Scholar,PIN062745,1854
FCDO,CSC,24/03/2023,Scholar Stipend,Award Costs,Scholar,PIN062744,1854
FCDO,CSC,24/03/2023,Scholar Stipend,Award Costs,Scholar,PIN062743,1236
FCDO,CSC,24/03/2023,Scholar Stipend,Award Costs,Scholar,PIN062742,1276.61
FCDO,CSC,24/03/2023,Scholar Stipend,Award Costs,Scholar,PIN062741,1236
FCDO,CSC,24/03/2023,Scholar Stipend,Award Costs,Scholar,PIN062740,1854
FCDO,CSC,24/03/2023,Scholar Stipend,Award Costs,Scholar,PIN062739,1854
FCDO,CSC,24/03/2023,Scholar Stipend,Award Costs,Scholar,PIN062738,1854
FCDO,CSC,24/03/2023,Scholar Stipend,Award Costs,Scholar,PIN062737,1854
FCDO,CSC,24/03/2023,Scholar Stipend,Award Costs,Scholar,PIN062736,2063.88
FCDO,CSC,24/03/2023,Scholar Stipend,Award Costs,Scholar,PIN062735,4548
FCDO,CSC,24/03/2023,Scholar Stipend,Award Costs,Scholar,PIN062734,618
FCDO,CSC,24/03/2023,Scholar Stipend,Award Costs,Scholar,PIN062733,3708
FCDO,CSC,24/03/2023,Scholar Stipend,Award Costs,Scholar,PIN062732,3399
FCDO,CSC,24/03/2023,Scholar Stipend,Award Costs,Scholar,PIN062731,1854
FCDO,CSC,24/03/2023,Scholar Stipend,Award Costs,Scholar,PIN062729,3708
FCDO,CSC,24/03/2023,Scholar Stipend,Award Costs,Scholar,PIN062728,1276.61
FCDO,CSC,24/03/2023,Scholar Stipend,Award Costs,Scholar,PIN062727,1854
FCDO,CSC,24/03/2023,Scholar Stipend,Award Costs,Scholar,PIN062726,1854
FCDO,CSC,24/03/2023,Scholar Stipend,Award Costs,Scholar,PIN062725,1105.29
FCDO,CSC,24/03/2023,Scholar Stipend,Award Costs,Scholar,PIN062724,1236
FCDO,CSC,24/03/2023,Scholar Stipend,Award Costs,Scholar,PIN062723,1854
FCDO,CSC,24/03/2023,Scholar Stipend,Award Costs,Scholar,PIN062722,1236
FCDO,CSC,24/03/2023,Scholar Stipend,Award Costs,Scholar,PIN062721,3708
FCDO,CSC,24/03/2023,Scholar Stipend,Award Costs,Scholar,PIN062720,1516
FCDO,CSC,24/03/2023,Scholar Stipend,Award Costs,Scholar,PIN062719,3708
FCDO,CSC,24/03/2023,Scholar Stipend,Award Costs,Scholar,PIN062718,3708
FCDO,CSC,24/03/2023,Scholar Stipend,Award Costs,Scholar,PIN062717,2213.3
FCDO,CSC,24/03/2023,Scholar Stipend,Award Costs,Scholar,PIN062716,618
FCDO,CSC,24/03/2023,Scholar Stipend,Award Costs,Scholar,PIN062715,1236
FCDO,CSC,24/03/2023,Scholar Stipend,Award Costs,Scholar,PIN062714,658.61
FCDO,CSC,24/03/2023,Scholar Stipend,Award Costs,Scholar,PIN062713,1854
FCDO,CSC,24/03/2023,Scholar Stipend,Award Costs,Scholar,PIN062712,3708
FCDO,CSC,24/03/2023,Scholar Stipend,Award Costs,Scholar,PIN062711,1854
FCDO,CSC,24/03/2023,Scholar Stipend,Award Costs,Scholar,PIN062710,1236
FCDO,CSC,24/03/2023,Scholar Stipend,Award Costs,Scholar,PIN062709,1854
FCDO,CSC,24/03/2023,Scholar Stipend,Award Costs,Scholar,PIN062708,1854
FCDO,CSC,24/03/2023,Scholar Stipend,Award Costs,Scholar,PIN062707,1236
FCDO,CSC,24/03/2023,Scholar Stipend,Award Costs,Scholar,PIN062706,618
FCDO,CSC,24/03/2023,Scholar Stipend,Award Costs,Scholar,PIN062705,1125.5
FCDO,CSC,24/03/2023,Scholar Stipend,Award Costs,Scholar,PIN063327,1015.19
FCDO,CSC,24/03/2023,Scholar Stipend,Award Costs,Scholar,PIN063326,1236
FCDO,CSC,24/03/2023,Scholar Stipend,Award Costs,Scholar,PIN063325,1236
FCDO,CSC,24/03/2023,Scholar Stipend,Award Costs,Scholar,PIN063324,1276.61
FCDO,CSC,24/03/2023,Scholar Stipend,Award Costs,Scholar,PIN063323,996.14
FCDO,CSC,24/03/2023,Scholar Stipend,Award Costs,Scholar,PIN063322,1236
FCDO,CSC,24/03/2023,Scholar Stipend,Award Costs,Scholar,PIN063321,1236
FCDO,CSC,24/03/2023,Scholar Stipend,Award Costs,Scholar,PIN063320,1236
FCDO,CSC,24/03/2023,Scholar Stipend,Award Costs,Scholar,PIN063319,963.16
FCDO,CSC,24/03/2023,Programme VAT,Programme Costs,Scholar,PIN063333,10415.8
FCDO,CSC,24/03/2023,Alumni Engagement,Programme Costs,Scholar,PIN063333,52079
FCDO,CSC,24/03/2023,Admin VAT,Admin Costs,Scholar,PIN063333,3911.2
FCDO,CSC,24/03/2023,Administration Fee,Admin Costs,Scholar,PIN063333,19556
FCDO,CSC,24/03/2023,Programme VAT,Programme Costs,Scholar,PIN063332,1553.66
FCDO,CSC,24/03/2023,Alumni Engagement,Programme Costs,Scholar,PIN063332,7768.32
FCDO,CSC,24/03/2023,Alumni Engagement,Programme Costs,Scholar,PIN063332,17953.49
FCDO,CSC,24/03/2023,Alumni Engagement,Programme Costs,Scholar,PIN063332,3068
FCDO,CSC,24/03/2023,Programme VAT,Programme Costs,Scholar,PIN063332,31247.4
FCDO,CSC,24/03/2023,Alumni Engagement,Programme Costs,Scholar,PIN063332,156237
FCDO,CSC,24/03/2023,Programme VAT,Programme Costs,Scholar,PIN063332,11733.6
FCDO,CSC,24/03/2023,Administration Fee,Admin Costs,Scholar,PIN063332,58668
FCDO,CSC,24/03/2023,Programme VAT,Programme Costs,Scholar,PIN063331,4964.86
FCDO,CSC,24/03/2023,Alumni Engagement,Programme Costs,Scholar,PIN063331,24824.31
FCDO,CSC,24/03/2023,Alumni Engagement,Programme Costs,Scholar,PIN063331,12046.17
FCDO,CSC,24/03/2023,Alumni Engagement,Programme Costs,Scholar,PIN063331,12000
FCDO,CSC,27/03/2023,Alumni Engagement,Programme Costs,Scholar,NOM001231,500
FCDO,CSC,29/03/2023,Scholar Stipend,Award Costs,MasterCard Prepaid Management Services Ltd,PIN063501,3708
FCDO,CSC,29/03/2023,Scholar Stipend,Award Costs,MasterCard Prepaid Management Services Ltd,PIN063501,3829.83
FCDO,CSC,29/03/2023,Scholar Stipend,Award Costs,MasterCard Prepaid Management Services Ltd,PIN063501,3708
FCDO,CSC,29/03/2023,Scholar Stipend,Award Costs,MasterCard Prepaid Management Services Ltd,PIN063501,3708
FCDO,CSC,29/03/2023,Scholar Stipend,Award Costs,MasterCard Prepaid Management Services Ltd,PIN063501,3708
FCDO,CSC,29/03/2023,Scholar Stipend,Award Costs,MasterCard Prepaid Management Services Ltd,PIN063501,3708
FCDO,CSC,29/03/2023,Scholar Stipend,Award Costs,MasterCard Prepaid Management Services Ltd,PIN063501,3708
FCDO,CSC,29/03/2023,Scholar Stipend,Award Costs,MasterCard Prepaid Management Services Ltd,PIN063501,3708
FCDO,CSC,29/03/2023,Scholar Stipend,Award Costs,MasterCard Prepaid Management Services Ltd,PIN063501,3708
FCDO,CSC,29/03/2023,Scholar Stipend,Award Costs,MasterCard Prepaid Management Services Ltd,PIN063501,3708
FCDO,CSC,29/03/2023,Scholar Stipend,Award Costs,MasterCard Prepaid Management Services Ltd,PIN063501,3708
FCDO,CSC,29/03/2023,Scholar Stipend,Award Costs,MasterCard Prepaid Management Services Ltd,PIN063501,3708
FCDO,CSC,29/03/2023,Scholar Stipend,Award Costs,MasterCard Prepaid Management Services Ltd,PIN063501,3708
FCDO,CSC,29/03/2023,Scholar Stipend,Award Costs,MasterCard Prepaid Management Services Ltd,PIN063501,3708
FCDO,CSC,29/03/2023,Scholar Stipend,Award Costs,MasterCard Prepaid Management Services Ltd,PIN063501,4548
FCDO,CSC,29/03/2023,Scholar Stipend,Award Costs,MasterCard Prepaid Management Services Ltd,PIN063501,3708
FCDO,CSC,29/03/2023,Scholar Stipend,Award Costs,MasterCard Prepaid Management Services Ltd,PIN063501,3708
FCDO,CSC,29/03/2023,Scholar Stipend,Award Costs,MasterCard Prepaid Management Services Ltd,PIN063501,3708
FCDO,CSC,29/03/2023,Scholar Stipend,Award Costs,MasterCard Prepaid Management Services Ltd,PIN063501,3708
FCDO,CSC,29/03/2023,Scholar Stipend,Award Costs,MasterCard Prepaid Management Services Ltd,PIN063501,3708
FCDO,CSC,29/03/2023,Scholar Stipend,Award Costs,MasterCard Prepaid Management Services Ltd,PIN063501,3708
FCDO,CSC,29/03/2023,Scholar Stipend,Award Costs,MasterCard Prepaid Management Services Ltd,PIN063501,3708
FCDO,CSC,29/03/2023,Scholar Stipend,Award Costs,MasterCard Prepaid Management Services Ltd,PIN063501,4548
FCDO,CSC,29/03/2023,Scholar Stipend,Award Costs,MasterCard Prepaid Management Services Ltd,PIN063501,4548
FCDO,CSC,29/03/2023,Scholar Stipend,Award Costs,MasterCard Prepaid Management Services Ltd,PIN063501,3708
FCDO,CSC,29/03/2023,Scholar Stipend,Award Costs,MasterCard Prepaid Management Services Ltd,PIN063501,3708
FCDO,CSC,29/03/2023,Scholar Stipend,Award Costs,MasterCard Prepaid Management Services Ltd,PIN063501,4548
FCDO,CSC,29/03/2023,Scholar Stipend,Award Costs,MasterCard Prepaid Management Services Ltd,PIN063501,3708
FCDO,CSC,29/03/2023,Scholar Stipend,Award Costs,MasterCard Prepaid Management Services Ltd,PIN063501,3708
FCDO,CSC,29/03/2023,Scholar Stipend,Award Costs,MasterCard Prepaid Management Services Ltd,PIN063501,3708
FCDO,CSC,29/03/2023,Scholar Stipend,Award Costs,MasterCard Prepaid Management Services Ltd,PIN063501,3708
FCDO,CSC,29/03/2023,Scholar Stipend,Award Costs,MasterCard Prepaid Management Services Ltd,PIN063501,3708
FCDO,CSC,29/03/2023,Scholar Stipend,Award Costs,MasterCard Prepaid Management Services Ltd,PIN063501,3708
FCDO,CSC,29/03/2023,Scholar Allowances,Award Costs,MasterCard Prepaid Management Services Ltd,PIN063501,2037.5
FCDO,CSC,29/03/2023,Scholar Allowances,Award Costs,Scholar,PIN063345,600
FCDO,CSC,29/03/2023,Award Support Costs,Award Costs,University College London Fees,PIN063343,5000
FCDO,CSC,29/03/2023,Tuition Fee,Award Costs,The University of Edinburgh,PIN063373,648
FCDO,CSC,29/03/2023,Tuition Fee,Award Costs,University of Strathclyde,PIN063358,9870
FCDO,CSC,29/03/2023,Tuition Fee,Award Costs,Cranfield University,PIN063372,17392
FCDO,CSC,29/03/2023,Tuition Fee,Award Costs,The University of Leeds,PIN063364,15600
FCDO,CSC,29/03/2023,Tuition Fee,Award Costs,University of Southampton,PIN063362,162500
FCDO,CSC,29/03/2023,Award Support Costs,Award Costs,University of Sheffield,PIN063351,1500
FCDO,CSC,29/03/2023,Award Support Costs,Award Costs,University of Sheffield,PIN063355,1500
FCDO,CSC,29/03/2023,Award Support Costs,Award Costs,University of Sheffield,PIN063354,1500
FCDO,CSC,29/03/2023,Award Support Costs,Award Costs,University of Sheffield,PIN063353,1500
FCDO,CSC,29/03/2023,Tuition Fee,Award Costs,University of Sheffield,PIN063350,18000
FCDO,CSC,29/03/2023,Tuition Fee,Award Costs,University of Sheffield,PIN063349,16640
FCDO,CSC,29/03/2023,Award Support Costs,Award Costs,University of Sheffield,PIN063348,1500
FCDO,CSC,29/03/2023,Tuition Fee,Award Costs,University of Sheffield,PIN063348,18000
FCDO,CSC,29/03/2023,Award Support Costs,Award Costs,University of Sheffield,PIN063347,1500
FCDO,CSC,29/03/2023,Tuition Fee,Award Costs,University of Sheffield,PIN063347,18000
FCDO,CSC,29/03/2023,Tuition Fee,Award Costs,University of Exeter,PIN063340,20000
FCDO,CSC,29/03/2023,Award Support Costs,Award Costs,University of Exeter,PIN063339,14896
FCDO,CSC,29/03/2023,Award Support Costs,Award Costs,University of Exeter,PIN063338,9962.72
FCDO,CSC,29/03/2023,Award Support Costs,Award Costs,University of Exeter,PIN063337,5000
FCDO,CSC,29/03/2023,Tuition Fee,Award Costs,University of Sussex,PIN063369,15180
FCDO,CSC,29/03/2023,Tuition Fee,Award Costs,University of Sussex,PIN063368,15180
FCDO,CSC,29/03/2023,Tuition Fee,Award Costs,University of Sussex,PIN063367,15180
FCDO,CSC,29/03/2023,Tuition Fee,Award Costs,University of Sussex,PIN063366,15180
FCDO,CSC,29/03/2023,Award Support Costs,Award Costs,Harper Adams University,PIN063378,6000
FCDO,CSC,29/03/2023,Tuition Fee,Award Costs,Harper Adams University,PIN063378,11944
FCDO,CSC,29/03/2023,Tuition Fee,Award Costs,University of the West of England Bristol,PIN063377,14250
FCDO,CSC,29/03/2023,Tuition Fee,Award Costs,Oxford Brookes University,PIN063334,2986
FCDO,CSC,29/03/2023,Tuition Fee,Award Costs,Aston University,PIN063336,14400
FCDO,CSC,29/03/2023,Tuition Fee,Award Costs,Aston University,PIN063335,14400
FCDO,CSC,29/03/2023,Tuition Fee,Award Costs,The University of Nottingham,PIN063357,15000
FCDO,CSC,29/03/2023,Tuition Fee,Award Costs,University of the West of England Bristol,PIN063376,11407.2
FCDO,CSC,29/03/2023,Tuition Fee,Award Costs,University of the West of England Bristol,PIN063375,14250
FCDO,CSC,29/03/2023,Award Support Costs,Award Costs,Queen Mary University of London,PIN063356,1500
FCDO,CSC,29/03/2023,Tuition Fee,Award Costs,Queen Mary University of London,PIN063356,18000
FCDO,CSC,29/03/2023,Tuition Fee,Award Costs,University of Sheffield,PIN063352,18000
FCDO,CSC,29/03/2023,Award Support Costs,Award Costs,University of Sheffield,PIN063352,5000
FCDO,CSC,29/03/2023,Tuition Fee,Award Costs,The University of Nottingham,PIN063393,2699.48
FCDO,CSC,29/03/2023,Tuition Fee,Award Costs,The University of Nottingham,PIN063388,2699.48
FCDO,CSC,29/03/2023,Tuition Fee,Award Costs,The University of Nottingham,PIN063385,2699.48
FCDO,CSC,29/03/2023,Tuition Fee,Award Costs,The University of Nottingham,PIN063380,2699.48
FCDO,CSC,29/03/2023,Tuition Fee,Award Costs,The University of Nottingham,PIN063384,2023.5
FCDO,CSC,29/03/2023,Tuition Fee,Award Costs,The University of Nottingham,PIN063387,2023.5
FCDO,CSC,29/03/2023,Tuition Fee,Award Costs,The University of Nottingham,PIN063390,2023.5
FCDO,CSC,29/03/2023,Tuition Fee,Award Costs,The University of Nottingham,PIN063374,2023.5
FCDO,CSC,29/03/2023,Tuition Fee,Award Costs,The University of Nottingham,PIN063383,2023.5
FCDO,CSC,29/03/2023,Tuition Fee,Award Costs,The University of Nottingham,PIN063359,2262
FCDO,CSC,29/03/2023,Tuition Fee,Award Costs,The University of Nottingham,PIN063394,1349
FCDO,CSC,29/03/2023,Tuition Fee,Award Costs,The University of Nottingham,PIN063382,1349
FCDO,CSC,29/03/2023,Tuition Fee,Award Costs,The University of Nottingham,PIN063371,1349
FCDO,CSC,29/03/2023,Tuition Fee,Award Costs,The University of Nottingham,PIN063392,4047
FCDO,CSC,29/03/2023,Tuition Fee,Award Costs,The University of Nottingham,PIN063389,4047
FCDO,CSC,29/03/2023,Tuition Fee,Award Costs,The University of Nottingham,PIN063386,4047
FCDO,CSC,29/03/2023,Tuition Fee,Award Costs,The University of Nottingham,PIN063381,4047
FCDO,CSC,30/03/2023,Consulting Fees,System Development,Association of Commonwealth Univs,PIN063496,672
FCDO,CSC,31/03/2023,Engagement,Programme Costs,Scholar,NOM001236,-983.16
FCDO,CSC,31/03/2023,Engagement,Programme Costs,Scholar,NOM001236,-582.38
FCDO,CSC,31/03/2023,Engagement,Programme Costs,Scholar,NOM001236,-1147.02
FCDO,CSC,31/03/2023,Engagement,Programme Costs,Scholar,NOM001236,-568.08
FCDO,CSC,31/03/2023,Engagement,Programme Costs,Scholar,NOM001236,-568.08
FCDO,CSC,31/03/2023,Engagement,Programme Costs,Scholar,NOM001236,-568.08
FCDO,CSC,31/03/2023,Engagement,Programme Costs,Scholar,NOM001236,-568.08
FCDO,CSC,31/03/2023,Engagement,Programme Costs,Scholar,NOM001236,-568.08
FCDO,CSC,31/03/2023,Engagement,Programme Costs,Scholar,NOM001236,-568.08
FCDO,CSC,31/03/2023,Engagement,Programme Costs,Scholar,NOM001236,-568.08
FCDO,CSC,31/03/2023,Engagement,Programme Costs,Scholar,NOM001236,-568.08
FCDO,CSC,31/03/2023,Engagement,Programme Costs,Scholar,NOM001236,-568.08
FCDO,CSC,31/03/2023,Engagement,Programme Costs,Scholar,NOM001236,-662.76
FCDO,CSC,31/03/2023,Engagement,Programme Costs,Scholar,NOM001236,-568.08
FCDO,CSC,31/03/2023,Engagement,Programme Costs,Scholar,NOM001236,-568.08
FCDO,CSC,31/03/2023,Engagement,Programme Costs,Scholar,NOM001236,-662.76
FCDO,CSC,31/03/2023,Engagement,Programme Costs,Scholar,NOM001236,-662.76
FCDO,CSC,31/03/2023,Engagement,Programme Costs,Scholar,NOM001236,-662.76
FCDO,CSC,31/03/2023,Scholar Stipend,Award Costs,Scholar,PIN063499,4763.8
FCDO,CSC,31/03/2023,Scholar Allowances,Award Costs,Scholar,PIN063498,688
FCDO,CSC,31/03/2023,Engagement,Programme Costs,Coby Phillips,PIN063489,1125.6
FCDO,CSC,31/03/2023,Scholar Engagement,Programme Costs,Cumberland Lodge Enterprises Limited,PIN063467,17132.35
FCDO,CSC,31/03/2023,Scholar Allowances,Award Costs,Scholar,PIN063470,690.33
FCDO,CSC,31/03/2023,Scholar Allowances,Award Costs,Scholar,PIN063440,600
FCDO,CSC,31/03/2023,Scholar Allowances,Award Costs,Scholar,PIN063421,600
FCDO,CSC,31/03/2023,Scholar Allowances,Award Costs,The University of Salford,PIN063503,3196.85
FCDO,CSC,31/03/2023,Award Support Costs,Award Costs,University of Strathclyde,PIN063462,800
FCDO,CSC,31/03/2023,Award Support Costs,Award Costs,University of Strathclyde,PIN063462,3000
FCDO,CSC,31/03/2023,Award Support Costs,Award Costs,University of Strathclyde,PIN063462,800
FCDO,CSC,31/03/2023,Award Support Costs,Award Costs,University of Strathclyde,PIN063462,3000
FCDO,CSC,31/03/2023,Tuition Fee,Award Costs,Aberystwyth University,PIN063463,16700
FCDO,CSC,31/03/2023,Award Support Costs,Award Costs,Scholar,PIN063459,5000
FCDO,CSC,31/03/2023,Tuition Fee,Award Costs,University of Sussex,PIN063458,15240
FCDO,CSC,31/03/2023,Tuition Fee,Award Costs,University of Sussex,PIN063457,15240
FCDO,CSC,31/03/2023,Tuition Fee,Award Costs,University of Sussex,PIN063456,16760
FCDO,CSC,31/03/2023,Tuition Fee,Award Costs,University of Manchester,PIN063455,14000
FCDO,CSC,31/03/2023,Tuition Fee,Award Costs,University of Manchester,PIN063454,15600
FCDO,CSC,31/03/2023,Tuition Fee,Award Costs,University of Manchester,PIN063453,18000
FCDO,CSC,31/03/2023,Scholar Allowances,Award Costs,University of Glasgow,PIN063452,1688
FCDO,CSC,31/03/2023,Award Support Costs,Award Costs,University College London,PIN063451,5000
FCDO,CSC,31/03/2023,Commission Meetings,Admin Costs,Emma Judge Catherine,PIN063487,600
FCDO,CSC,31/03/2023,Commission Meetings,Admin Costs,Scholar,PIN063486,1200
FCDO,CSC,31/03/2023,Commission Meetings,Admin Costs,Scholar,PIN063485,600
FCDO,CSC,31/03/2023,Commission Meetings,Admin Costs,Scholar,PIN063484,1200
FCDO,CSC,31/03/2023,Commission Meetings,Admin Costs,Scholar,PIN063483,900
FCDO,CSC,31/03/2023,Commission Meetings,Admin Costs,Scholar,PIN063482,600
FCDO,CSC,31/03/2023,Commission Meetings,Admin Costs,Catherine MacKenzie,PIN063481,900
FCDO,CSC,31/03/2023,Commission Meetings,Admin Costs,Scholar,PIN063480,1200
FCDO,CSC,31/03/2023,Commission Meetings,Admin Costs,Scholar,PIN063479,600
FCDO,CSC,31/03/2023,Commission Meetings,Admin Costs,Morag McDonald,PIN063478,900
FCDO,CSC,31/03/2023,Commission Meetings,Admin Costs,Madeleine Arnot,PIN063476,600
FCDO,CSC,31/03/2023,Commission Meetings,Admin Costs,Scholar,PIN063473,900
FCDO,CSC,31/03/2023,Tuition Fee,Award Costs,University of Durham,PIN063420,45000
FCDO,CSC,31/03/2023,Tuition Fee,Award Costs,University of Durham,PIN063420,18000
FCDO,CSC,31/03/2023,Tuition Fee,Award Costs,University of Durham,PIN063420,17172
FCDO,CSC,31/03/2023,Tuition Fee,Award Costs,University of Durham,PIN063420,18000
FCDO,CSC,31/03/2023,Award Support Costs,Award Costs,University of Durham,PIN063420,3000
FCDO,CSC,31/03/2023,Tuition Fee,Award Costs,University of Durham,PIN063420,17172
FCDO,CSC,31/03/2023,Tuition Fee,Award Costs,University of Durham,PIN063420,16200
FCDO,CSC,31/03/2023,Tuition Fee,Award Costs,University of Durham,PIN063420,18000
FCDO,CSC,31/03/2023,Award Support Costs,Award Costs,University of Bradford,PIN063417,5000
FCDO,CSC,31/03/2023,Tuition Fee,Award Costs,Brunel University,PIN063409,16360
FCDO,CSC,31/03/2023,Scholar Allowances,Award Costs,Scholar,PIN063497,2088.76
FCDO,CSC,31/03/2023,Award Support Costs,Award Costs,Brunel University,PIN063447,5000
FCDO,CSC,31/03/2023,Award Support Costs,Award Costs,University of Bristol,PIN063414,5000
FCDO,CSC,31/03/2023,Award Support Costs,Award Costs,University of Bristol,PIN063410,5000
FCDO,CSC,31/03/2023,Tuition Fee,Award Costs,University of Stirling,PIN063431,17815
FCDO,CSC,31/03/2023,Tuition Fee,Award Costs,The University of Edinburgh,PIN063432,680
FCDO,CSC,31/03/2023,Award Support Costs,Award Costs,Scholar,PIN063437,5000
FCDO,CSC,31/03/2023,Tuition Fee,Award Costs,Scholar,PIN063437,12800
FCDO,CSC,31/03/2023,Tuition Fee,Award Costs,London School of Economics,PIN063428,18000
FCDO,CSC,31/03/2023,Award Support Costs,Award Costs,Cranfield University,PIN063416,5000
FCDO,CSC,31/03/2023,Award Support Costs,Award Costs,Kings College London,PIN063405,5000
FCDO,CSC,31/03/2023,Tuition Fee,Award Costs,University of Sheffield,PIN063439,5000
FCDO,CSC,31/03/2023,Award Support Costs,Award Costs,Kings College London,PIN063406,4500
FCDO,CSC,31/03/2023,Tuition Fee,Award Costs,Kings College London,PIN063406,1600
FCDO,CSC,31/03/2023,Consulting Fees,System Development,Association of Commonwealth Univs,PIN063494,1428
FCDO,CSC,31/03/2023,Scholar Engagement,Programme Costs,QUEEN ELIZABETH CENTRE,PIN063491,19101.6
FCDO,CSC,31/03/2023,Tuition Fee,Award Costs,University of Sussex,PIN063424,18975
FCDO,CSC,31/03/2023,Tuition Fee,Award Costs,University of Sussex,PIN063423,18975
FCDO,CSC,31/03/2023,Tuition Fee,Award Costs,University of Sussex,PIN063422,18975
FCDO,CSC,31/03/2023,Tuition Fee,Award Costs,University of Wolverhampton,PIN063442,14450
FCDO,CSC,31/03/2023,Tuition Fee,Award Costs,University of Wolverhampton,PIN063441,14450
FCDO,CSC,31/03/2023,Award Support Costs,Award Costs,Scholar,PIN063427,3000
FCDO,CSC,31/03/2023,Tuition Fee,Award Costs,Scholar,PIN063427,13736
FCDO,CSC,31/03/2023,Tuition Fee,Award Costs,University of Stirling,PIN063407,16320
FCDO,CSC,31/03/2023,Award Support Costs,Award Costs,The University of Birmingham,PIN063464,1500
FCDO,CSC,31/03/2023,Tuition Fee,Award Costs,University of Bath,PIN063436,10500
FCDO,CSC,31/03/2023,Award Support Costs,Award Costs,University of Bath,PIN063435,2000
FCDO,CSC,31/03/2023,Tuition Fee,Award Costs,University of Bath,PIN063435,10500
FCDO,CSC,31/03/2023,Award Support Costs,Award Costs,The University of Birmingham,PIN063418,1500
FCDO,CSC,31/03/2023,Tuition Fee,Award Costs,The University of Edinburgh,PIN063433,680
FCDO,CSC,31/03/2023,Consulting Fees,System Development,Association of Commonwealth Univs,PIN063492,1050
FCDO,CSC,31/03/2023,Award Support Costs,Award Costs,Scholar,PIN063461,800
FCDO,CSC,31/03/2023,Award Support Costs,Award Costs,Scholar,PIN063461,3000
FCDO,CSC,31/03/2023,Award Support Costs,Award Costs,Scholar,PIN063461,800
FCDO,CSC,31/03/2023,Award Support Costs,Award Costs,Scholar,PIN063461,3000
FCDO,CSC,31/03/2023,Award Support Costs,Award Costs,Scholar,PIN063461,800
FCDO,CSC,31/03/2023,Award Support Costs,Award Costs,Scholar,PIN063461,3000
FCDO,CSC,31/03/2023,Award Support Costs,Award Costs,Scholar,PIN063461,800
FCDO,CSC,31/03/2023,Award Support Costs,Award Costs,Scholar,PIN063461,3000
FCDO,CSC,31/03/2023,Award Support Costs,Award Costs,Scholar,PIN063461,800
FCDO,CSC,31/03/2023,Award Support Costs,Award Costs,Scholar,PIN063461,3000
FCDO,CSC,31/03/2023,Tuition Fee,Award Costs,The University of Edinburgh,PIN063434,680
FCDO,CSC,31/03/2023,Scholar Allowances,Award Costs,The University of Nottingham,PIN063419,1325
FCDO,CSC,31/03/2023,Scholar Allowances,Award Costs,The University of Nottingham,PIN063419,2975
FCDO,CSC,31/03/2023,Visa Costs,Award Costs,The University of Nottingham,PIN063419,758
FCDO,CSC,31/03/2023,Award Support Costs,Award Costs,Lancaster University,PCR000272,-4248
FCDO,CSC,31/03/2023,Tuition Fee,Award Costs,Bangor University,PIN063465,60750
FCDO,CSC,31/03/2023,Scholar Travel,Award Costs,Scholar,PIN063415,635
FCDO,CSC,31/03/2023,Scholar Travel,Award Costs,Scholar,PIN063415,3051.9
FCDO,CSC,31/03/2023,Tuition Fee,Award Costs,University of Stirling,PIN063429,18000
FCDO,CSC,31/03/2023,Tuition Fee,Award Costs,Aston University,PIN063404,14080
FCDO,CSC,31/03/2023,Tuition Fee,Award Costs,Lancaster University,PIN063450,21240
FCDO,CSC,31/03/2023,Tuition Fee,Award Costs,Lancaster University,PIN063449,18240
FCDO,CSC,31/03/2023,Scholar Travel,Award Costs,Scholar,PIN063460,1069.84
FCDO,CSC,31/03/2023,Scholar Travel,Award Costs,Nottingham Trent University,PIN063408,1068.48
FCDO,CSC,10/03/2023,Scholar Stipend,Award Costs,Scholar,PRF000274,-2281.67
FCDO,CSC,30/03/2023,Alumni Engagement,Programme Costs,Amex,NOM001232,500
FCDO,CSC,30/03/2023,Alumni Engagement,Programme Costs,Amex,NOM001247,644.92
FCDO,CSC,30/03/2023,Engagement,Programme Costs,Fomsite,NOM001246,12112.12
